{"text_format":"3","workbook":"xlsx","n_sheets":1,"sheets":["Sheet1"],"not_rendered":{"images":1,"defined_names":2},"read":"whole","date_system":"1900"}

{"sheet":"Sheet1","index":0,"n_rows":88,"n_cols":21,"rows_kept":88,"merged":[[0,0,1,0],[0,1,1,1],[0,2,1,2],[0,3,1,3],[0,4,1,4],[0,5,1,5],[0,6,1,6],[0,7,0,10],[0,11,1,11],[0,12,1,12],[0,13,1,13],[0,14,1,14],[0,15,1,15],[0,16,1,16],[0,17,1,17],[0,18,1,18],[0,19,1,19],[0,20,1,20],[87,0,87,20]]}
["序号","学院及代码","专业及代码","类\n型","学制\n(年)","学费\n(元/年)","免试生","招生计划",{"$nulls":3},"考试科目","业务科1\n参考书目","业务科2\n参考书目","复试科目名称及\n参考书目","同等学力加试科目名称及参考书目","跨专业加试科目名称及\n参考书目","本专业特殊要求","联系方式","校区","备注"]
[{"$nulls":7},"非全日制","全日制","合计","考试招生计划"]
[1,"001马克思主义学院","030500马克思主义理论\n01马克思主义基本原理\n02马克思主义中国化研究\n03思想政治教育\n04中国近现代史基本问题研究\n05党的建设","学术型",3,7200,3,0,12,{"$f":"H3+I3","v":12},{"$f":"I3+H3-G3","v":9},"①101思想政治理论\n②201英语(一)\n③612马克思主义基本原理概论\n④812中国化马克思主义概论","《马克思主义基本原理概论》（第二版）（新编21世纪思想政治教育专业系列教材）张雷声主编，中国人民大学出版社，2018年版。","《中国化马克思主义概论》（第三版）（新编21世纪思想政治教育专业系列教材）田克勤、李彩华主编，中国人民大学出版社，2020年版。","①中国近现代史基本问题研究\n参考书目《中国近现代史纲要》马克思主义理论研究和建设工程重点教材，《中国近现代史纲要（2023年版）》编写组，高等教育出版社，2023年版。\n②思想政治教育学原理\n参考书目《思想政治教育学原理》郑永廷主编，高等教育出版社，2018年版。","①综合知识\n参考书目：无\n②写作\n参考书目：无","无","无","028-84768996\n\n 451066461@qq.com","狮子山"]
[2,"001马克思主义学院","045102学科教学（思政）","专业型",3,8000,12,0,43,{"$f":"H4+I4","v":43},{"$f":"I4+H4-G4","v":31},"①101思想政治理论\n②204英语(二)\n③333教育综合\n④821教育研究方法","教育部考试院统一命题","①《教育研究方法论初探》叶澜著,上海教育出版社,2014年版。\n②《教育研究方法》陈向明主编,教育科学出版,2013年版。","思想政治教育学原理\n参考书目《思想政治教育学原理》，郑永廷主编，高等教育出版社2018年版。","①综合知识\n参考书目：无\n②写作\n参考书目：无","无","无","028-84768996\n\n 451066461@qq.com\n\n","狮子山"]
[3,"002\n文学院","010106美学\n01美学原理\n02中国美学\n03西方美学\n04审美教育\n05影视美学","学术型",3,7200,4,0,14,14,10,"①101思想政治理论\n②201英语(一)或203日语\n③613美学原理\n④813中国美学史","《美学原理》叶朗著，北京大学出版社。\n\n\n","《中国美学史大纲》叶朗著，上海人民出版社。","①西方美学史（笔试）\n参考书目1:《西方现代美学史》朱立元主编，上海文艺出版社。\n参考书目2:《新编西方美学史教程》章启群著，商务印书馆。\n②中西哲学史（口试）\n参考书目1:《中国哲学简史》冯友兰著，北京大学出版社。\n参考书目2:《西方哲学简史》赵敦华著，北京大学出版社。","①文学理论\n参考书目：依据普通高校教材\n②写作学\n参考书目：依据普通高校教材","①文学理论\n参考书目：依据普通高校教材\n②写作学\n参考书目：依据普通高校教材","无","028-84795785\n\n\ncswxyyjb@163.com","狮子山"]
[4,"002\n文学院","045103学科教学（语文）","专业型",3,8000,10,0,45,45,35,"①101思想政治理论\n②204英语(二)\n③333教育综合\n④816中国语言文学基础（含古代汉语、现代汉语、古代文学、现当代文学）","教育部考试院统一命题","①古代汉语\n参考书目1:《新编古代汉语》（上、下册），周及徐主编，中华书局，2014年修订本。\n参考书目2:《古代汉语》，王力主编，1998年重排校订本，中华书局。\n②现代汉语\n参考书目1:《现代汉语》（增订三版），黄伯荣主编，高等教育出版社。\n参考书目2:《现代汉语》（重订本），胡裕树主编，上海教育出版社。\n③古代文学\n参考书目1:《中国古代文学史》,郭预衡主编,上海古籍出版社。\n参考书目2:《中国古代文学史》,袁行霈主编,高等教育出版社。\n④现当代文学\n参考书目:《中国现代汉语文学史》（上、下）,曹万生主编,中国人民大学出版社。","语文课程与教学论\n参考书目：无","①文学理论\n参考书目：依据普通高校教材\n②语言学概论\n参考书目：依据普通高校教材","①文学理论\n参考书目：依据普通高校教材\n②语言学概论\n参考书目：依据普通高校教材","无","028-84795785\n\n\ncswxyyjb@163.com","狮子山"]
[5,"002\n文学院","045300国际中文教育","专业型",3,12000,4,0,26,26,22,"①101思想政治理论\n②201英语(一)或203日语\n③354汉语基础\n④445汉语国际教育基础","（国际中文教育专业学位）教指委指定大纲\n\n招生单位命题","(国际中文教育专业学位)教指委指定大纲\n\n招生单位命题","①对外汉语教学技能\n参考书目：无\n②英语口语\n参考书目：无","①现代汉语\n参考书目《现代汉语》黄伯荣、廖序东主编，高等教育岀版社。\n②中国文学史常识\n参考书目《中国古代文学史》郭预衡主编，上海古籍出版社。","①现代汉语\n参考书目《现代汉语》黄伯荣、廖序东主编，高等教育岀版社。\n②中国文学史常识\n参考书目《中国古代文学史》郭预衡主编，上海古籍出版社。","无","028-84795785\n\n\ncswxyyjb@163.com","狮子山"]
[6,"002\n文学院","050100中国语言文学\n01文艺学（中国文化与文论、西方文论、文艺美学、文艺理论与批评）\n02语言学及应用语言学（现代汉语词汇语法研究、句法语义研究、汉语方言研究、对外汉语教学研究、文秘语言研究）\n03汉语言文字学（汉语方言研究、上古汉语研究、中古及近代汉语研究、西南少数民族语言研究）\n04中国古典文献学（古籍整理与研究、巴蜀文献整理与研究、中国古代文学与文化研究、域外汉文学文献研究、中外文化交流史研究）\n05中国古代文学（中国文学批评史、中国古代文学的断代研究、中国古代文学的分体研究、巴蜀文学）\n06中国现当代文学（中国现代文学、中国当代文学、中国现当代文学与传媒）\n07中国少数民族语言文学（民族文献研究、汉语方言与民族语接触研究、民俗与民间文学研究、民族文学与文化研究）\n08比较文学与世界文学（比较文学、欧美文学、东方文学）\n09民间文学(民间文学体裁学、民间文学学术史、民间文学与地域文化)","学术型",3,7200,20,0,69,69,49,"①101思想政治理论\n②201英语(一)或203日语\n③616文学理论基础与写作\n④816中国语言文学基础（含古代汉语、现代汉语、古代文学、现当代文学）","①马克思主义理论研究和建设工程重点教材《文学理论》（第二版），高等教育出版社、人民出版社，2020年版。\n②周宪《文学理论导引》高等教育出版社，2014年版。","①古代汉语\n参考书目1:《新编古代汉语》（上、下册），周及徐主编，中华书局出版社，2014年修订本。\n参考书目2:《古代汉语》王力主编，1998年重排校订本，中华书局出版社。\n②现代汉语\n参考书目1:《现代汉语》（增订三版），黄伯荣主编，高等教育出版社。\n参考书目2:《现代汉语》（重订本），胡裕树主编，上海教育出版社。\n③古代文学\n参考书目1:《中国古代文学史》郭预衡主编,上海古籍出版社。\n参考书目2:《中国古代文学史》袁行霈主编,高等教育出版社。\n④现当代文学\n参考书目《中国现代汉语文学史》（上、下）,曹万生主编,中国人民大学出版社。","01复试科目：中西方文论基础（笔试）（参考书目：阎嘉《文学理论基础》重庆大学出版社2014年版；杨冬《文学理论：从柏拉图到德里达》第3版，北京大学出版社，2015年版；张少康《中国文学理论批评史教程》修订本，北京大学出版社2011年版。）\n02复试科目：语言学概论（笔试）（参考书目《语言学纲要》叶蜚声、徐通锵著，北京大学出版社，2010年修订本；《语言学概论》胡明扬主编，语文出版社。）\n03复试科目：语言学概论（笔试）（参考书目《语言学纲要》叶蜚声、徐通锵著，北京大学出版社，2010年修订本；《语言学概论》胡明扬主编，语文出版社。）\n04复试科目：中国古代文论（笔试）（参考书目：郭绍虞《中国古代文学批评史》商务印书馆2010年版。）\n05复试科目：中国古代文论（笔试）（参考书目：郭绍虞《中国古代文学批评史》商务印书馆2010年版。)\n06复试科目：文学理论（笔试）（参考书目《文学理论教程》童庆炳主编，高等教育出版社；《当代西方文艺理论》朱立元主编，华东师范大学出版社。）\n07复试科目：民俗语言学（笔试）（参考书目《四川方言与民俗》黄尚军，四川人民出版社，2002年1月版。）\n08复试科目：比较文学与世界文学（笔试）（参考书目：曹顺庆《比较文学概论》第二版，高等教育出版社2018年版；郑克鲁、蒋承勇主编《外国文学史》第三版上、下，高等教育出版社2015年版。）\n09复试科目：民间文学（笔试）（参考书目：万建中《民间文学引论》，北京大学出版社2022年版；苑利主编《二十世纪中国民俗学经典》，社科文献出版社2002年版。）","01加试科目：①中国古代文论②西方文论（参考书目：杨冬《文学理论：从柏拉图到德里达》，北京大学出版社，2015年版；阎嘉《文学理论基础》，重庆大学出版社，2018年版。）\n02加试科目：①汉字学（参考书目：《汉字学》刘志成主编，天地出版社2014年修订本。）②中国古代文学（参考书目：依据普通高校教材）\n03加试科目：①汉字学（参考书目：《汉字学》刘志成主编，天地出版社2014年修订本。）②中国古代文学（参考书目：依据普通高校教材）\n04加试科目：①文学理论②中国历代文论选（参考书目：依据普通高校教材）\n05加试科目：①文学理论②中国历代文论选（参考书目：依据普通高校教材）\n06加试科目：①外国文学（参考书目：依据普通高校教材）②中国古代文学（参考书目：依据普通高校教材）\n07加试科目：①现代汉语（参考书目：依据普通高校教材）②古代汉语（参考书目：《新编古代汉语》，周及徐主编，中华书局，2009年版。）\n08加试科目：①西方文论（参考书目：王一川主编《西方文论史教程》，北京大学出版社，2017年版。）②外国文学（参考书目：郑克鲁、蒋承勇主编《外国文学史》第三版上、下，高等教育出版社2015年版。）\n09加试科目：①文学理论②中国古代文学（参考书目：依据普通高校教材）","01加试科目：①中国古代文论②西方文论（参考书目：杨冬《文学理论：从柏拉图到德里达》北京大学出版社，2015年版；阎嘉《文学理论基础》，重庆大学出版社，2018年版。）\n02加试科目：①汉字学（参考书目：《汉字学》刘志成主编，天地出版社，2014年修订本。）②中国古代文学（参考书目：依据普通高校教材）\n03加试科目：①汉字学（参考书目：《汉字学》刘志成主编，天地出版社，2014年修订本。）②中国古代文学（参考书目：依据普通高校教材）\n04加试科目：①文学理论②中国历代文论选（参考书目：依据普通高校教材）\n05加试科目：①文学理论②中国历代文论选（参考书目：依据普通高校教材）\n06加试科目：①外国文学（参考书目：依据普通高校教材）②中国古代文学（参考书目：依据普通高校教材）\n07加试科目：①现代汉语（参考书目：依据普通高校教材）②古代汉语（参考书目：《新编古代汉语》周及徐主编，中华书局，2009年版。）\n08加试科目：①西方文论（参考书目：王一川主编，《西方文论史教程》，北京大学出版社，2017年版。）②外国文学（参考书目：郑克鲁、蒋承勇主编《外国文学史》第三版上、下，高等教育出版社，2015年版。）\n09加试科目：①文学理论②中国古代文学（参考书目：依据普通高校教材）","①616：满分150分，其中文学理论基础60分，写作90分（说明：根据文学作品写文学评论）\n②816：满分150分，其中古代汉语35分，现代汉语40分，古代文学45分，现当代文学30分。","028-84795785\n\n\ncswxyyjb@163.com","狮子山","01方向招9人\n\n02方向招9人\n\n03方向招5人\n\n04方向招5人\n\n05方向招17人\n\n06方向招15人\n\n07方向招2人\n\n08方向招4人\n\n09方向招3人"]
[7,"003法学院","030100法学\n01宪法学与行政法学\n02刑法学\n03民商法学\n04诉讼法学\n","学术型",3,7200,4,0,15,15,11,"①101思想政治理论\n②201英语(一)或203日语\n③620法学综合一（法理学、宪法学）\n④820法学综合二（刑法总论、民法总论、民事与刑事诉讼法）","①法理学    《法理学》（第五版），张文显主编，高等教育出版社，2018年版。\n②宪法学    《宪法》（第五版），周叶中主编，高等教育出版社、北京大学出版社，2020年版。","①刑法总论\n参考书目1：《刑法学》编写组《刑法学（上册·总论）》(马克思主义理论研究和建设工程重点教材)，高等教育出版社，2023年版。\n参考书目2：高铭暄、马克昌主编《刑法学》（第10版），北京大学出版社、高等教育出版社，2021年版。\n②民法总论\n参考书目：魏振瀛主编《民法》（第九版），北京大学出版社、高等教育出版社，2024年版。\n③民事诉讼法\n参考书目：江伟、肖建国主编《民事诉讼法》（第九版），中国人民大学出版社，2023年版。\n④刑事诉讼法\n参考书目：宋英辉，甄贞主编《刑事诉讼法学》（第七版），中国人民大学出版社，2021年版。","01宪法学与行政法学\n①行政法学：胡建淼、江利红著《行政法学》，中国人民大学出版社，2025年版。\n②监察法学：秦前红主编《监察法学教程》，法律出版社，2023年版。\n02刑法学\n刑法总论和分论：《刑法学》编写组《刑法学（上册·总论）》(马克思主义理论研究和建设工程重点教材)；《刑法学（下册·各论）》(马克思主义理论研究和建设工程重点教材)，高等教育出版社，2023年版；高铭暄、马克昌主编《刑法学》（第10版），北京大学出版社、高等教育出版社，2021年版。\n03民商法学\n①民法学：魏振瀛主编《民法》（第九版），北京大学出版社、高等教育出版社，2024年版。\n②商法学：范健、王建文著《商法学》（第五版），法律出版社，2021年版。\n04诉讼法学\n司法制度：左卫民主编《中国司法制度》（第五版），中国政法大学出版社，2024年版。","①法理学\n参考书目《法理学》张文显主编，高等教育出版社，2018年版。\n②中国法制史\n参考书目《中国法制史》编写组《中国法制史》（第二版），高等教育出版社，2019年版。\n备注：加试科目均为教育部《普通高等学校本科专业目录和专业介绍（2012年）》中所列之法学专业核心课程。","①法理学\n参考书目《法理学》张文显主编，高等教育出版社，2018年版。\n②中国法制史\n参考书目《中国法制史》编写组《中国法制史》（第二版），高等教育出版社，2019年版。\n备注：加试科目均为教育部《普通高等学校本科专业目录和专业介绍（2012年）》中所列之法学专业核心课程。","无","028-84761377\n\n\nhoulu822@163.com\n\n","狮子山","01方向招3人\n\n02方向招4人\n\n03方向招4人\n\n04方向招4人"]
[8,"003法学院","035101法律（非法学）","专业型",3,13000,3,0,10,10,7,"①101思想政治理论\n②201英语(一)\n③398法律硕士专业基础（非法学）\n④498法律硕士综合（非法学）","教育部考试院统一命题","教育部考试院统一命题","①法理学（笔试）\n参考书目《法理学》张文显主编，高等教育出版社，北京大学出版社联合出版，面向21世纪课程教材最新版本。\n②面试\n参考书目：法律综合知识与能力、英语听说。","①民法学\n参考书目《民法》魏振瀛主编。\n②刑法学\n参考书目《刑法学》高铭暄主编。\n（以上教材均为高等教育出版社、北京大学出版社联合出版、面向21世纪课程教材最新版本）","无","无","028-84761377\n\n\nhoulu822@163.com","狮子山","报考前所学专业须为非法学专业"]
[9,"003法学院","035102法律（法学）","专业型",3,13000,4,0,19,19,15,"①101思想政治理论\n②201英语(一)\n③397法律硕士专业基础（法学）\n④497法律硕士综合（法学）","教育部考试院统一命题","教育部考试院统一命题","①法理学（笔试）\n参考书目《法理学》张文显主编，高等教育出版社，北京大学出版社联合出版，面向21世纪课程教材最新版本。\n②面试\n参考书目 法律综合知识与能力、英语听说。","①民法学\n参考书目《民法》魏振瀛主编。\n②刑法学\n参考书目《刑法学》高铭暄主编。\n（以上教材均为高等教育出版社、北京大学出版社联合出版、面向21世纪课程教材最新版本）","无","无","028-84761377\n\n\nhoulu822@163.com","狮子山","报考前所学专业须为法学专业"]
[10,"004教育科学学院","040100教育学\n01教育学原理         \n02课程与教学论\n03学科课程与教学论(语文、数学、英语)\n04教育史\n05比较教育学\n06学前教育学\n07高等教育学\n08职业技术教育学\n09特殊教育学\n10艺术教育学\n11少年儿童组织与思想意识教育\n12教育测量与评价\n13家庭教育与儿童发展\n14教师教育学\n15成人教育学","学术型",3,7200,10,0,34,34,24,"①101思想政治理论\n②201英语(一)\n③311教育学专业基础","教育部考试院统一命题","无","教育学综合\n参考书目1:《教育学基础》全国十二所重点师范大学联合编写，教育科学出版社，2008年版。\n参考书目2:《教育心理学》张大均主编，人民教育出版社，2015年版。","①中外教育史\n参考书目1:《外国教育史教程》吴式颖、李明德主编，人民教育出版社，2015年版。\n参考书目2:《中国教育史》（修订本），孙培青主编，华东师范大学出版社，2009年版。\n②写作","①中外教育史\n参考书目1:《外国教育史教程》吴式颖、李明德主编，人民教育出版社，2015年版。\n参考书目2:《中国教育史》（修订本），孙培青主编，华东师范大学出版社，2009年版。\n②写作","比较教育学方向原则上要求英语过六级","028-84768629\n\n\ncsjiaokeyuanfushi@163.com","狮子山"]
[11,"004教育科学学院","045101教育管理","专业型",3,8000,0,45,0,45,45,"①101思想政治理论\n②204英语(二)\n③333教育综合\n④821教育研究方法","教育部考试院统一命题","《教育研究方法》陈向明主编，教育科学出版社，2013年版。","教育学综合\n参考书目1：《教育学基础》全国十二所重点师范大学联合编写，教育科学出版社，2008年版。\n参考书目2：《教育心理学》张大均主编,人民教育出版社,2015年版。","①中外教育史\n参考书目1:《外国教育史教程》吴式颖、李明德主编，人民教育出版社，2015年版。\n参考书目2:《中国教育史》（修订本），孙培青主编，华东师范大学出版社，2009年版。\n②写作","①中外教育史\n参考书目1:《外国教育史教程》吴式颖、李明德主编，人民教育出版社，2015年版。\n参考书目2:《中国教育史》（修订本），孙培青主编，华东师范大学出版社，2009年版。\n②写作","大学本科毕业后有3年以上工作经验；或大专毕业后有5年以上工作经验；或获研究生学历或获学位后有2年以上工作经验。","028-84768629\n\n\ncsjiaokeyuanfushi@163.com","狮子山"]
[12,"004教育科学学院","045115小学教育","专业型",3,8000,17,0,72,72,55,"①101思想政治理论\n②204英语(二)\n③333教育综合\n④821教育研究方法       ","教育部考试院统一命题","《教育研究方法》陈向明主编，教育科学出版社，2013年版。","教育学综合\n参考书目1：《教育学基础》全国十二所重点师范大学联合编写，教育科学出版社，2008年版。\n参考书目2：《教育心理学》张大均主编，人民教育出版社，2015年版。","①中外教育史\n参考书目1:《外国教育史教程》吴式颖、李明德主编，人民教育出版社，2015年版。\n参考书目2:《中国教育史》（修订本），孙培青主编，华东师范大学出版社，2009年版。\n②写作","①中外教育史\n参考书目1:《外国教育史教程》吴式颖、李明德主编，人民教育出版社，2015年版。\n参考书目2:《中国教育史》（修订本），孙培青主编，华东师范大学出版社，2009年版。\n②写作","无","028-84768629\n\n\ncsjiaokeyuanfushi@163.com","狮子山"]
[13,"004教育科学学院","045118学前教育                                     ","专业型",3,8000,12,0,42,42,30,"①101思想政治理论\n②204英语(二)\n③333教育综合\n④821教育研究方法       ","教育部考试院统一命题","《教育研究方法》陈向明主编，教育科学出版社，2013年版。","教育学综合\n参考书目1:《教育学基础》全国十二所重点师范大学联合编写，教育科学出版社，2008年版。\n参考书目2:《教育心理学》张大均主编，人民教育出版社，2015年版。","①中外教育史\n参考书目1:《外国教育史教程》吴式颖、李明德主编，人民教育出版社，2015年版。\n参考书目2:《中国教育史》（修订本），孙培青主编，华东师范大学出版社，2009年版。\n②写作","①中外教育史\n参考书目1:《外国教育史教程》吴式颖、李明德主编，人民教育出版社，2015年版。\n参考书目2:《中国教育史》（修订本），孙培青主编，华东师范大学出版社，2009年版。\n②写作","无","028-84768629\n\n\ncsjiaokeyuanfushi@163.com","狮子山"]
[14,"004教育科学学院","045119特殊教育","专业型",3,8000,4,0,16,16,12,"①101思想政治理论\n②204英语(二)\n③333教育综合\n④821教育研究方法       ","教育部考试院统一命题","《教育研究方法》陈向明主编，教育科学出版社，2013年版。","教育学综合\n参考书目1:《教育学基础》全国十二所重点师范大学联合编写，教育科学出版社，2008年版。\n参考书目2:《教育心理学》张大均主编，人民教育出版社，2015年版。","①中外教育史\n参考书目1:《外国教育史教程》吴式颖、李明德主编，人民教育出版社，2015年版。\n参考书目2:《中国教育史》（修订本），孙培青主编，华东师范大学出版社，2009年版。\n②写作","①中外教育史\n参考书目1:《外国教育史教程》吴式颖、李明德主编，人民教育出版社，2015年版。\n参考书目2:《中国教育史》（修订本），孙培青主编，华东师范大学出版社，2009年版。\n②写作","无","028-84768629\n\n\ncsjiaokeyuanfushi@163.com","狮子山"]
[15,"005哲学学院","010100哲学\n01马克思主义哲学（马克思主义哲学原理、马克思主义哲学史与当代、国外马克思主义哲学）\n02中国哲学（宋明理学、儒家经学、佛教哲学、道家道教哲学）\n03外国哲学（西方古典哲学、西方近现代哲学）\n04逻辑学（现代逻辑、逻辑哲学）\n05伦理学（伦理学原理、伦理思想史、环境与灾疫伦理、科学与技术伦理）\n06政治哲学（西方古典政治哲学、西方近现代政治哲学）","学术型",3,7200,4,0,17,17,13,"①101思想政治理论\r\n②201英语(一)\r\n③611马克思主义哲学\r\n④811中西哲学史","《马克思主义哲学》（马克思主义理论研究和建设工程重点教材），《马克思主义哲学》编写组，高等教育出版社、人民出版社，2020年第二版。\n","①《中国哲学史》上下册，《中国哲学史》编写组，高等教育出版社、人民出版社，2021年版。\n②《西方哲学史》，《西方哲学史》编写组，高等教育出版社、人民出版社，2011年版。","01复试科目：马克思主义哲学综合                                                                                                                                                                             参考书目：《马克思主义哲学史》（马克思主义理论研究和建设工程重点教材）《马克思主义哲学史》编写组，高等教育出版社、人民出版社,2020年版。\n02复试科目：中国哲学史                                                                                                                                                                                             参考书目：《中国哲学史》上下册，《中国哲学史》编写组，高等教育出版社、人民出版社，2021年版。\n03复试科目：外国哲学综合                                                                                                                                                                            参考书目：《现代西方哲学新编》赵敦华，北京大学出版社，2021年版。\n04复试科目：逻辑学基础理论                                                                                                                                                                                    参考书目：《逻辑学基础教程（第4版）》，南开大学哲学院逻辑学教研室编著，南开大学出版社，2021年版。\n05复试科目：伦理学综合                                                                                                                                                                              参考书目：《伦理学》，《伦理学》编写组，高等教育出版社、人民出版社,2021年版。                                                                                                                           06复试科目：西方政治哲学                                                                                                                                                                            参考书目：《西方政治思想史》（第二版），《西方政治思想史》编写组，高等教育出版社、人民出版社，2019年版。                                                               ","综合知识\n参考书目：无\n","无","无","028-84768985  \n\n42596813@qq.com","狮子山","01方向招3人\n\n02方向招6人\n\n03方向招2人\n\n04方向招2人\n\n05方向招2人\n\n06方向招2人"]
[16,"006外国语学院","045108学科教学（英语）\n（全日制）","专业型",3,8000,25,0,86,86,61,"①101思想政治理论\n②204英语(二)\n③333教育综合\n④823英语专业综合","教育部考试院统一命题","①《新编英国文学选读》（上下册，第四版），罗经国，北京大学出版社，1996年版。\n②《美国文学选读》（第三版），陶洁，高等教育出版社，2000年版。\n③《语言学教程》（第四版英文本），胡壮麟主编，北京大学出版社，2011年版。","①外语教学理论与实践\n参考书目1：《英语教学法教程》，王蔷，高等教育出版社，2006年版。\n参考书目2：How to Teach English，J.Harmer，外语教学与研究出版社，2004年版。\n参考书目3：《普通高中英语课程标准（2017年版）》人民教育出版社或《普通高中英语课程标准（2017年版2020年修订）》电子版。\n②综合面试   ","①高级英语\n②高级听力\n参考书目：《高级英语》（上、下册），张汉熙，外语教学与研究出版社，1997年版。","无","本专业全日制招收本科为英语相关专业考生；考生入学时将查验英语专业八级证书。如未通过，入学后须通过相应的英语等级考试。非全日制招收基础教育一线的英语教职员工、教研人员，对考生本科专业和英语专八证书没有要求。","028-84480026\n\nscsdwgyyjs@sina.com\n","成龙"]
[17,"006外国语学院","045108学科教学（英语）\n（非全日制）","专业型",3,8000,1,10,0,10,9,"①101思想政治理论\n②204英语(二)\n③333教育综合\n④823英语专业综合","教育部考试院统一命题","①《新编英国文学选读》（上下册，第四版），罗经国，北京大学出版社，1996年版。\n②《美国文学选读》（第三版），陶洁，高等教育出版社，2000年版。\n③《语言学教程》（第四版英文本），胡壮麟主编，北京大学出版社，2011年版。","①外语教学理论与实践\n参考书目1：《英语教学法教程》，王蔷，高等教育出版社，2006年版。\n参考书目2：How to Teach English，J.Harmer，外语教学与研究出版社，2004年版。\n参考书目3：《普通高中英语课程标准（2017年版）》人民教育出版社或《普通高中英语课程标准（2017年版2020年修订）》电子版。\n②综合面试   ","①高级英语\n②高级听力\n参考书目：《高级英语》（上、下册），张汉熙，外语教学与研究出版社，1997年版。","无","本专业全日制招收本科为英语相关专业考生；考生入学时将查验英语专业八级证书。如未通过，入学后须通过相应的英语等级考试。非全日制招收基础教育一线的英语教职员工、教研人员，对考生本科专业和英语专八证书没有要求。","028-84480026\n\nscsdwgyyjs@sina.com\n","成龙"]
[18,"006外国语学院","050200外国语言文学\n01英语语言文学\n02俄语语言文学\n03法语语言文学\n04日语语言文学\n05外国语言学及应用语言学\n06翻译学\n07比较文学与跨文化研究\n08外语教育学","学术型",3,7200,4,0,14,14,10,"①101思想政治理论\n②第二外语：含201英语(一)或202俄语或203日语或245法语\n③621第一外语基础（限选英、俄、法、日其中一门且与第二外语不同语种作答）\n④824外国语言文学基础与汉语写作","第二外语参考书目：①201英语一：教育部指定大纲。②202俄语：教育部指定大纲。③203日语 ：教育部指定大纲。④245法语：《新大学法语》（第三版），李志清主编，高等教育出版社，2020年版。\n621第一外语基础主要考查外语基础能力，参考书目按语种分列如下：①英语基础（含写作）：《高级英语》（上、下册），张汉熙主编，外语教学与研究出版社，1997年版；English(1-8册)，黄源深等主编，上海译文出版社，1996年版。②俄语基础（含写作）《大学俄语（东方）》(第5-7册)，北京外国语大学俄语学院编著，外语教学与研究出版社，2011年版。③法语基础（含写作）《法国语言与文化》，童佩智等编，外语教学与研究出版社，2005年版。④日语基础（含写作）：《新经典日本语高级教程（第三版）》（第一册、第二册），于飞、李燕、刘艳主编，2024、2025版。","参考书目1：《外国文学史》（第三版），郑克鲁、蒋承勇，高等教育出版社，2015年版。\n参考书目2：《语言学概论》（第四版），岑运强，中国人民大学出版社，2015年版。\n\n本科目为汉语试题，各语种考生用汉语作答。主要考核一级学科下各语种考生应该具备的汉语写作能力和外国语言与文学基础知识。\n","01-08方向复试科目为外语专业基础、综合面试，参考书目按语种分为：\n①英语考生：《新编英国文学选读》（上下册，第四版），罗经国，北京大学出版社，1996年版；《美国文学选读》（第三版），陶洁，高等教育出版社，2000年版；《欧洲文化入门》王佐良等主编，外语教育与研究出版社，2004年版；《实用翻译教程：英汉互译（增订本）》，冯庆华著，上海外语教育出版社，2002年版；《语言学教程》（第四版英文本），胡壮麟主编，北京大学出版社，2011年版（21世纪英语专业系列教材）。\n②俄语考生：《新时代俄语通论》（上下册），张家骅主编，商务印书馆出版社，2006年版；《俄汉翻译教程》丛亚平等编，上海外语教育出版社，2012年版；《汉俄翻译教程》，胡谷明主编，上海外语教育出版社，2010年版；《俄罗斯文学史》任光宣等著，北京大学出版社，2003年版；《俄罗斯历史》《俄罗斯地理》《俄罗斯文化》，李英男、戴桂菊主编，外语教学与研究出版社，2006年版。\n③法语考生：《法国文学导读》（上下册），徐真华主编，上海外语教育出版社，2018年版；《法汉翻译新教程》马彦华、罗顺江主编，北京大学出版社， 2008年版；《汉法翻译教程》，罗顺江、马彦华主编，北京大学出版社，2006年版；《法语语言学教程》，王秀丽编著，外语教学与研究出版社，2006年版；《法语国家与地区概况》丁雪英编著，外语教学与研究出版社，2006年版。\n④日语考生：《日本文学简史》，孙立春、连永平、阿莉塔编著，上海外语教育出版社，2023；《高级日汉翻译》，费建华等编著，中国宇航出版社，2023；《汉日翻译教程（第三版）》，苏琦编著，商务印书馆，2019；《日语概说（第二版）》，皮细庚著，上海外语教育出版社，2024；《日本概况（修订版）》，盛勤编著，上海外语教育出版社，2022。                                                    \n其中，07“比较文学与跨文化研究”方向另增复试参考书目：《比较文学教程（第2版）》，曹顺庆主编，高等教育出版社，2010年版。           \n08“外语教育学”方向复试科目为外语教学理论与实践。参考书目1：《英语教学法教程》王蔷，高等教育出版社，2006年版；参考书目2：How to Teach English，J.Harmer，外语教学与研究出版社，2004年版；参考书目3：《普通高中英语课程标准（2017年版）》人民教育出版社或《普通高中英语课程标准（2017年版2020年修订）》电子版。","①高级英语/高级俄语/高级法语/高级日语\n②高级听力\n参考书目：与初试科目③621第一外语基础各语种参考书目相同。","①高级英语/高级俄语/高级法语/高级日语\n②高级听力\n参考书目：与初试科目③621第一外语基础各语种参考书目相同。","各方向考生入学时将查验第一外语八级证书。如未通过，入学后须通过相应的语种等级考试。","028-84480026\n scsdwgyyjs@sina.com","成龙","1.英语语种招收01、05、06、07、08方向考生\n2.俄语语种招收02、05、06和08方向考生\n3.法语语种招收03、06、07和08方向考生\n4.日语语种招收04、05、06、07和08方向考生。\n注意：第一外语与第二外语不得为同一语种，因此一外和二外科目禁止选做同一语种试题，否则取消复试资格。"]
[19,"006外国语学院","055101英语笔译","专业型",3,15000,5,0,22,22,17,"①101思想政治理论\n②222翻译硕士（综合）\n③368翻译基础（综合）\n④448汉语写作与百科知识","（翻译硕士专业学位）教指委指定大纲\n\n招生单位命题","（翻译硕士专业学位）教指委指定大纲\n\n招生单位命题","①英汉互译及英语写作\n参考书目1：《路线图-翻译学方法入门》詹姆•威廉姆斯著，上海外语教育出版社，2004年4月版。\n参考书目2：《高级英汉翻译理论与实践》（第三版），叶子南著，清华大学出版社，2013年8月版。\n参考书目3：国内近年出版的用英语编写的高级英语阅读、翻译、写作教材以及大学语文教材。\n②综合面试","①高级英语\n②高级听力\n参考书目1：《高级英语》张汉熙，外语教学与研究出版社，2011年5月版。\n参考书目2：English（1-8册），黄源深等，上海译文出版社，2002年版。","①高级英语\n②高级听力\n参考书目1：《高级英语》张汉熙，外语教学与研究出版社，2011年5月版。\n参考书目2：English（1-8册），黄源深等，上海译文出版社，2002年版。","考生入学时将查验英语专业八级证书。如未通过，入学后须通过相应的英语等级考试。","028-84480026\n\n scsdwgyyjs@sina.com","成龙"]
[20,"006外国语学院","055103俄语笔译","专业型",3,15000,1,0,3,3,2,"①101思想政治理论\n②222翻译硕士（综合）\n③368翻译基础（综合）\n④448汉语写作与百科知识","（翻译硕士专业学位）教指委指定大纲\n\n招生单位命题","（翻译硕士专业学位）教指委指定大纲\n\n招生单位命题","①俄汉互译及俄语写作\n参考书目1：《俄汉翻译教程》丛亚平等编，上海外语教育出版社，2012年版。\n参考书目2：《汉俄翻译教程》胡谷明主编，上海外语教育出版社，2010年版。\n参考书目3：国内近年出版的用俄语编写的高级俄语阅读、翻译、写作教材，以及任何大学语文教材。\n②综合面试","①高级俄语\n②高级听力\n参考书目1：《大学俄语》（东方新版）（5-7册），史铁强总主编，外语教学与研究出版社，2011年版。\n参考书目2：《现代俄语理论教程》（上、下册），王超尘等编，上海外语教育出版社，1988年版。","①高级俄语\n②高级听力\n参考书目1：《大学俄语》（东方新版）（5-7册），史铁强，外语教学与研究出版社，2011年版。\n参考书目2：《现代俄语理论教程》（上、下册），王超尘等，上海外语教育出版社，1988年版。","考生入学时将查验俄语专业八级证书。如未通过，入学后须通过相应的俄语等级考试。","028-84480026\n\nscsdwgyyjs@sina.com","成龙"]
[21,"006外国语学院","055107法语笔译","专业型",3,15000,1,0,3,3,2,"①101思想政治理论\n②222翻译硕士（综合）\n③368翻译基础（综合）\n④448汉语写作与百科知识","（翻译硕士专业学位）教指委指定大纲\n\n招生单位命题","（翻译硕士专业学位）教指委指定大纲\n\n招生单位命题","①法汉互译及法语写作\n参考书目1：《法汉翻译教程》许钧主编，上海外语教育出版社，2007年版。\n参考书目2：《汉法翻译教程》（第二版），罗顺江、马彦华主编，北京大学出版社，2021年版。\n参考书目3：国内近年出版的用法语编写的高级法语阅读、翻译、写作教材以及大学语文教材。\n②综合面试          ","①高级法语\n②高级听力\n参考书目《法国语言与文化》童佩智等主编，外语教学与研究出版社，2005年版。","①高级法语\n②高级听力\n参考书目《法国语言与文化》童佩智等主编，外语教学与研究出版社，2005年版。","考生入学时将查验法语专业八级证书。如未通过，入学后须通过相应的法语等级考试。","028-84480026\n\nscsdwgyyjs@sina.com","成龙"]
[22,"007历史文化与旅游学院 ","045109学科教学（历史 ）   ","专业型",3,8000,8,0,29,29,21,"①101思想政治理论\n②204英语(二)\n③333教育综合\n④821教育研究方法 ","教育部考试院统一命题","①《教育研究方法论初探》叶澜著，上海教育出版社，2014年版。 ②《教育研究方法》陈向明主编，教育科学出版社，2013年版。 ","①历史课程论 参考书目《历史课程论》，陈志刚著，长春出版社，2012年版。②历史教学论 参考书目1《中学历史教学法》（第4版），于友西、赵亚夫主编， 高等教育出版社2017年版。参考书目2：《核心素养导向的高中历史课程教学重构》 陈辉主编，高等教育出版社，2023年版 。 ","①中国历史文化参考书目《中国历史文化》（第5版）， 蔡宗德、李文芬编著，旅游教育出版社，2010年版。②写作 ","①中国历史文化参考书目《中国历史文化》（第5版）， 蔡宗德、李文芬编著， 旅游教育出版社，2010年版。②写作 ","无","028-84760823\n\n364471861@qq.com","狮子山"]
[23,"007历史文化与旅游学院 ","060200中国史 01中国古代史\n02中国近现代史\n03专门史\n04史学理论与中国史学史\n05中国边疆学","学术型",3,7200,4,0,16,16,12,"①101思想政治理论\n②201英语(一)或203日语\n③313历史学专业基础\n","教育部考试院统一命题","无","中国历史   参考书目：无","中国史   参考书目：无","中国史   参考书目：无","无","028-84760823\n\n364471861@qq.com","狮子山","根据学校下达的招生计划本专业按录取率录取。录取率＝本专业录取人数/本专业复试人数（各方向录取人数＝各方向复试人数×录取率） "]
[24,"007历史文化与旅游学院 ","060300世界史 01世界专门史\n02世界近现代史\n03世界地区与国别史 ","学术型",3,7200,2,0,8,8,6,"①101思想政治理论\n②201英语(一)或203日语\n③313历史学专业基础\n","教育部考试院统一命题","无","世界近代史   参考书目：无","中国史   参考书目：无\n\n","中国史   参考书目：无","无","028-84760823\n\n364471861@qq.com","狮子山"]
[25,"007历史文化与旅游学院 ","120203旅游管理\n01旅游资源开发与规划\n02旅游企业管理\n03旅游产业发展研究 ","学术型",3,7200,1,0,5,5,4,"①101思想政治理论\n②201英语(一)或203日语\n③303数学（三）\n④826管理学","教育部考试院统一命题","《管理学（第五版）》 周三多主编， 高等教育出版社，2018年版 。","旅游管理学参考书目1：《基础旅游学（第4版）》谢彦君，商务印书馆，2015年版。参考书目2：《区域旅游规划原理》 吴必虎，中国旅游出版社，2002版 。","①旅游综合知识参考书目《旅游地理学（第3版）》保继刚，高等教育出版社，2012年版。② 写作","①旅游综合知识参考书目《旅游地理学（第3版）》保继刚，高等教育出版社，2012年版。② 写作\n","无","028-84760823\n\n364471861@qq.com","狮子山"]
[26,"008数学科学学院","025200应用统计             \n01教育统计与决策分析\n02大数据分析\n03工业统计","专业型",3,18000,3,0,10,10,7,"①101思想政治理论\n②204英语(二)\n③303数学(三）\n④432统计学","教育部考试院统一命题","《统计学》（第8版），贾俊平，中国人民大学出版社。\n\n","概率论与数理统计、计量经济学（任选一门）。\n参考书目《概率论与数理统计》茆诗松编，华东师范大学出版社，或《计量经济学》（第4版）庞皓，科学出版社。\n \n \n","①多元统计分析 \n②统计软件与应用\n参考书目1：《应用多元统计分析（第四版）》朱建平，科学出版社。参考书目2：《R语言实战（第3版）》[美]罗伯特 · I. 卡巴科弗（Robert I. Kabacoff），人民邮电出版社。","①多元统计分析 \n②统计软件与应用\n参考书目1：《应用多元统计分析（第四版）》朱建平，科学出版社。参考书目2：《R语言实战（第3版）》[美]罗伯特 · I. 卡巴科弗（Robert I. Kabacoff），人民邮电出版社。","无","028-84760177\n\n37759700@qq.com","狮子山"]
[27,"008数学科学学院","045104学科教学（数学）","专业型",3,8000,8,0,27,27,19,"①101思想政治理论\n②204英语(二)\n③333教育综合\n④821教育研究方法 ","教育部考试院统一命题","①《教育研究方法论初探》叶澜著，上海教育出版社，2014年版。\n②《教育研究方法》陈向明主编，教育科学出版社，2013年版。","实变函数、近世代数、概率论与数理统计、数值计算方法（任选一门）。\n参考书目:\n1.《实变函数与泛函分析基础》程其襄等编。\n2.《近世代数》韩士安、林磊编著，科学出版社。\n3.《概率论与数理统计》茆诗松编，华东师范大学出版社。\n4.《数值计算方法与算法》张韵华等，科学出版社。","实变函数、近世代数、概率论与数理统计、数值计算方法（复试科目以外任选二门）。\n参考书目：\n1.《实变函数与泛函分析基础》程其襄等编。\n2.《近世代数》韩士安、林磊编著，科学出版社。\n3.《概率论与数理统计》茆诗松编，华东师范大学出版社。\n4.《数值计算方法与算法》张韵华等，科学出版社。","实变函数、近世代数、概率论与数理统计、数值计算方法（复试科目以外任选二门）。\n参考书与同等学力加试参考书目一致。","无","电话：028-84760177\n\n37759700@qq.com\n","狮子山"]
[28,"008数学科学学院","070100数学\n01基础数学\n02计算数学\n03概率论与数理统计\n04应用数学\n05运筹学与控制论\n06数学教育\n07金融数学","学术型",3,8000,20,0,69,69,49,"①101思想政治理论\n②201英语(一)\n③628数学分析\n④828高等代数","《数学分析》华东师范大学数学系编，高等教育出版社。","《高等代数》北京大学数学系几何与代数教研室前代数小组编，高等教育出版社。","实变函数、近世代数、概率论与数理统计、数值计算方法（任选一门）。\n参考书目：\n1.《实变函数与泛函分析基础》程其襄等编。\n2.《近世代数》韩士安、林磊编著，科学出版社。\n3.《概率论与数理统计》茆诗松编，华东师范大学出版社。\n4.《数值计算方法与算法》张韵华等，科学出版社。","实变函数、近世代数、概率论与数理统计、数值计算方法（复试科目以外任选二门）。\n参考书目：\n1.《实变函数与泛函分析基础》程其襄等编。\n2.《近世代数》韩士安、林磊编著，科学出版社。\n3.《概率论与数理统计》茆诗松编，华东师范大学出版社。\n4.《数值计算方法与算法》张韵华等，科学出版社。","实变函数、近世代数、概率论与数理统计、数值计算方法（复试科目以外任选二门）。\n参考书与同等学力加试参考书目一致。","无","028-84760177\n\n37759700@qq.com","狮子山"]
[29,"009物理与电子工程学院","045105学科教学（物理）","专业型",3,8000,6,0,23,23,17,"①101思想政治理论\n②204英语(二)\n③333教育综合\n④830普通物理（仅要求力学、电磁学）","教育部考试院统一命题","《普通物理学》程守洙等主编，高等教育出版社。","中学物理课程标准解读                                                        \n参考书目1:《义务教育物理课程标准（2022年版》中华人民共和国教育部制定，北京师范大学出版社，2022年版。\n参考书目2:《普通高中物理课程标准（2017年版2020年修订）》中华人民共和国教育部制定，人民教育出版社，2017年版。","①物理学史\n参考书目《物理学史教程》李艳平，申先甲主编，北京，科学出版社，2003年版。\n②物理新课程理论与实践\n参考书目《核心素养导向的高中物理教学设计》李春密，北京师范大学出版社，2019年版。","①物理学史\n参考书目《物理学史教程》李艳平、申先甲主编，北京，科学出版社，2003年版。\n②物理新课程理论与实践\n参考书目《核心素养导向的高中物理教学设计》李春密，北京师范大学出版社，2019年版。","无","028-84481556\n\n yushuo@sicnu.edu.cn","成龙"]
[30,"009物理与电子工程学院","070200物理学\n01凝聚态物理\n02光学\n03理论物理\n04计算物理","学术型",3,8000,15,0,53,53,38,"①101思想政治理论\n②201英语(一)\n③630量子力学\n④830普通物理（仅要求力学、电磁学）","《量子力学教程（第三版）》曾谨言著，科学出版社，2017年版。","《普通物理学》程守洙等主编，高等教育出版社。","专业复试科目（任选一门）\n①理论力学\n参考书目《理论力学》周衍柏编，高等教育出版社。\n②光学\n参考书目《光学教程》（第5版），姚启钧原著，高等教育出版社。","①热力学与统计物理\n参考书目《热力学与统计物理》第3版，汪志诚著，高等教育出版社。\n②电动力学\n参考书目《电动力学》第2版，郭硕鸿，高等教育出版社。","①热力学与统计物理\n参考书目《热力学与统计物理》第3版，汪志诚著，高等教育出版社。\n②电动力学\n参考书目《电动力学》第2版，郭硕鸿，高等教育出版社。","无","028-84481556\n\n yushuo@sicnu.edu.cn","成龙","免试生可接收直博生\n1名"]
[31,"009物理与电子工程学院","085400电子信息\n01新一代电子信息技术（含量子技术等）\n02通信工程（含宽带网络、移动通信等）\n03人工智能\n04网络与信息安全","专业型",3,12000,12,0,42,42,30,"①101思想政治理论\n②204英语(二)\n③302数学(二)\n④832数字电子技术","教育部考试院统一命题","《电子技术基础数字部分》（第7版），康华光、张林，高等教育出版社，2021年版。","专业复试科目（任选一门）\n①模拟电子技术\n参考书目《电子技术基础 模拟部分》（第五版），康华光主编，高等教育出版社。\n②计算机基础与C语言程序设计\n参考书目《计算机基础与C语言程序设计》（第三版），蔫德军等，清华大学出版社。\n③通信原理\n参考书目《通信原理》（第7版），樊昌信、曹丽娜，国防工业出版社。","①电路分析基础\n参考书目《电路分析基础》（第四版），李瀚荪，高等教育出版社。\n②计算机基础与C语言程序设计\n参考书目《计算机基础与C语言程序设计》（第三版），蔫德军等，清华大学出版社。","①电路分析基础\n参考书目《电路分析基础》（第四版），李瀚荪，高等教育出版社。\n②计算机基础与C语言程序设计\n参考书目《计算机基础与C语言程序设计》（第三版），蔫德军等，清华大学出版社。","无","028-84481556\n\n yushuo@sicnu.edu.cn","成龙","2027年起，该专业业务科2改用：C语言程序设计；参考书目：《C程序设计（第五版）》谭浩强著，清华大学出版社。"]
[32,"010脑与心理科学研究院","040200心理学\n","学术型",3,7200,14,0,48,48,34,"①101思想政治理论\n②201英语(一)\n③312心理学专业基础","教育部考试院统一命题","无","心理学综合能力考察             参考书目1:《认知心理学》连榕，高等教育出版社，2010年版。\n参考书目2:《发展心理学》林崇德，人民教育出版社，2008年版。","①心理统计学\n参考书目《现代心理与教育统计学（第5版）》张厚粲、徐建平，北京师范大学出版社，2021年1月版。\n ②心理学史 \n参考书目《西方心理学的历史与体系（第二版）》叶浩生主编，人民教育出版社，2014年1月版。","无","无","028-84760580 \n\nbrainpsychology@163.com\n","狮子山"]
[33,"010脑与心理科学研究院","045400应用心理","专业型",3,16000,8,0,29,29,21,"①101思想政治理论\n②204英语(二)\n③347心理学专业综合","①《普通心理学（第六版）》彭聃龄,陈宝国著，北京师范大学出版社,2024年1月版。\n②《发展心理学（第三版）》林崇德,人民教育出版社，2018年5月版。\n③《社会心理学（第3版）》金盛华，高等教育出版社，2020年8月版。\n④《心理学研究方法：评估信息世界之法》（美）贝丝·莫林（Beth Morling）著；张明等译，中国轻工业出版社，2020年3月版。\n招生单位命题","无","心理学综合能力考察            参考书目1:《认知心理学》连榕，高等教育出版社，2010年版。\n参考书目2:《发展心理学》林崇德，人民教育出版社，2008年版。","①心理统计学\n参考书目《现代心理与教育统计学（第5版）》张厚粲、徐建平，北京师范大学出版社，2021年1月版。\n ②心理学史 \n参考书目《西方心理学的历史与体系（第二版）》叶浩生主编，人民教育出版社，2014年1月版。","无","无","028-84760580\n\nbrainpsychology@163.com\n","狮子山"]
[34,"010脑与心理科学研究院","077101基础心理学","学术型",3,8000,11,0,38,38,27,"①101思想政治理论\n②201英语(一)③649普通心理学\n④850心理学研究方法","《普通心理学（第六版）》彭聃龄,陈宝国著，北京师范大学出版社,2024年1月版。","《心理学研究方法：评估信息世界之法》（美）贝丝·莫林（Beth Morling）著；张明等译，中国轻工业出版社，2020年3月版。","心理学综合能力考察             参考书目1:《认知心理学》连榕，高等教育出版社，2010年版。\n参考书目2:《发展心理学》林崇德，人民教育出版社，2008年版。","①心理统计学\n参考书目《现代心理与教育统计学（第5版）》张厚粲、徐建平，北京师范大学出版社，2021年1月出版。\n ②心理学史 \n参考书目《西方心理学的历史与体系（第二版）》叶浩生主编，人民教育出版社，2014年1月出版。","无","无","028-84760580 \n\nbrainpsychology@163.com\n","狮子山"]
[35,"011地理与资源科学学院","045110学科教学（地理）","专业型",3,8000,5,0,14,14,9,"①101思想政治理论\n②204英语(二)\n③333教育综合\n④833综合地理","教育部考试院统一命题","①《自然地理学》（第四版），伍光和编著，高等教育出版社。 \n②《人文地理学》（第二版），赵荣编著，高等教育出版社。","地理教学论\n参考书目《中学地理教育学》李晴主编，科学出版社，2012年9月版。\n","①经济地理\n参考书目《经济地理学》（第三版），李小建主编，高等教育出版社。\n②城市地理学\n参考书目《城市地理学》（2009年版），许学强编著，高等教育出版社。","无","无","028-84480707","成龙"]
[36,"011地理与资源科学学院","070500地理学\n01自然地理学\n02人文地理学\n03地图学与地理信息系统","学术型",3,8000,15,0,52,52,37,"①101思想政治理论\n②201英语(一)\n③640地理信息系统\n④833综合地理","《地理信息系统教程》（第二版），汤国安主编，高等教育出版社。","①《自然地理学》（第四版），伍光和编著，高等教育出版社。 \n②《人文地理学》（第二版），赵荣编著，高等教育出版社。","①中国自然地理\n参考书目《中国自然地理》（第三版），赵济主编，高等教育出版社。  \n②区域分析与区域规划\n参考书目《区域分析与区域规划》（第三版），崔功豪编著，高等教育出版社。\n③遥感导论  \n参考书目《遥感导论》，梅安新编著，高等教育出版社。","①经济地理\n参考书目《经济地理学》（第三版），李小建主编，高等教育出版社。\n②城市地理学\n参考书目《城市地理学》（2009年版），许学强编著，高等教育出版社。","无","无","028-84480707","成龙","01方向招18人                                                                           02方向招23人                                     03方向招11人"]
[37,"012化学与材料科学学院","045106学科教学（化学）   ","专业型",3,8000,12,0,24,24,12,"①101思想政治理论\r\n②204英语(二)\r\n③333教育综合\r\n④835无机化学","教育部考试院统一命题","《无机化学》（第五版），北京师范大学主编，高等教育出版社。","①研究设计与论文写作\n参考书目：《研究设计与写作指导：定性、定量与混合的路径》Creswell著，杨宏波，李金正译，重庆大学出版社，2024年版。\n②化学课程与教学论\n参考书目：《化学课程与教学论（第二版）》东北师范大学出版社，2018年版。","物理化学\n参考书目：《物理化学》（第二版），朱传征、褚莹、许海涵主编，科学出版社。","物理化学\n参考书目：《物理化学》（第二版），朱传征、褚莹、许海涵主编，科学出版社。","无","028-84761038\n\n136083663@qq.com","狮子山"]
[38,"012化学与材料科学学院","045117科学与技术教育","专业型",3,8000,7,0,8,8,1,"①101思想政治理论\r\n②204英语(二)\r\n③333教育综合\r\n④821教育研究方法","教育部考试院统一命题","①《教育研究方法论初探》叶澜著，上海教育出版社，2014年版。\n②《教育研究方法》陈向明主编，教育科学出版社，2013年版。","科学课程与教学论\n参考书目：《小学科学课程与教学论》林长春、彭蜀晋主编，西南师范大学出版社，2019年8月第1版。","①国际科学教育导论\n参考书目：《国际科学教育导论》丁邦平著，山西教育出版社，2002年7月第1版。\n②科学哲学导论\n参考书目：《科学究竟是什么？》[英]A.F.查尓默斯，商务印书馆，2018年1月第1版。","①国际科学教育导论\n参考书目：《国际科学教育导论》丁邦平著，山西教育出版社，2002年7月第1版。\n②科学哲学导论\n参考书目：《科学究竟是什么？》[英]A.F.查尓默斯，商务印书馆，2018年1月第1版。","无","028-84761038\n\n136083663@qq.com","狮子山"]
[39,"012化学与材料科学学院","070300化学\n01有机化学\n02无机化学\n03分析化学\n04物理化学\n05环境化学\n（以下方向限直博生选择）\n01有机功能分子合成与应用（仅限直博生选择）\n02无机光电功能材料与化学（仅限直博生选择）\n03纳米催化与理论计算（仅限直博生选择）\n04环境污染控制化学（仅限直博生选择）\n05化学分析与生物传感（仅限直博生选择）","学术型",3,8000,27,0,98,98,71,"①101思想政治理论\r\n②201英语(一)\r\n③635有机化学\r\n④835无机化学","《有机化学》（第六版），李景宁主编，高等教育出版社。","《无机化学》（第五版），北京师范大学主编，高等教育出版社。","物理化学\n参考书目：《物理化学》（第二版），朱传征、褚莹、许海涵主编，科学出版社。","分析化学\n参考书目1：《分析化学》（仪器分析部分）第三版，曾泳淮主编，高等教育出版社。 \n参考书目2：《分析化学》（上册）第6版，武汉大学主编，高等教育出版社 。\n\n","分析化学\n参考书目1：《分析化学》（仪器分析部分）第三版，曾泳淮主编，高等教育出版社。\n参考书目2：《分析化学》（上册）第6版，武汉大学主编，高等教育出版社。 ","无","028-84761038\n\n136083663@qq.com","狮子山","1.免试生可接收直博生1名。\n\n2.北京大学交叉学院联合培养计划5名（不限研究方向）。"]
[40,"012化学与材料科学学院","083000环境科学与工程\n01水污染防治及污水资源化\n02大气污染防治及废气资源化\n03固体废物处理与污染土壤修复","学术型",3,8000,6,0,15,15,9,"①101思想政治理论\r\n②201英语(一)\r\n③302数学(二)\r\n④836环境学概论","教育部考试院统一命题","《环境科学概论》（第三版），方淑荣 主编，清华大学出版社。","环境化学\n参考书目：《环境化学》（第三版），孙红文、戴树桂主编，高等教育出版社。","无机化学\n参考书目：《无机化学》（第五版），北京师范大学主编，高等教育出版社。\n","无机化学\n参考书目：《无机化学》（第五版），北京师范大学主编，高等教育出版社。\n","无","028-84761038\n\n136083663@qq.com","狮子山"]
[41,"013计算机科学学院","045114现代教育技术","专业型",3,8000,7,0,20,20,13,"①101思想政治理论\n②204英语(二)\n③333教育综合\n④837教育技术学基础","教育部考试院统一命题","①《教育技术学》何克抗、李文光主编，北京师范大学出版社。\n②《现代教育技术应用》沈莉主编，科学出版社。","教育技术研究（含少部分人工智能基础）\n参考书目1:《教育技术学研究方法(第3版)》，张屹、周平红编著，北京大学出版社。\n参考书目2:《机器学习与计算思维》(第一版)，杨娟主编，科学出版社，2023年2月版。","①教学设计\n参考书目《教学系统设计》，何克抗等编，高等教育出版社。\n②教育学原理\n参考书目1：《教育学》王道俊、王汉澜主编，人民教育出版社。\n参考书目2：《教育概论》叶澜主编，人民教育出版社。","无","无","028-84483992\n或84480016\n\n86057765@qq.com","成龙","2027年起，该专业业务科2改用821教育研究方法"]
[42,"013计算机科学学院","078401教育技术学             \n01智能学习技术\n02信息技术教育\n03数字媒体技术","学术型",3,8000,2,0,7,7,5,"①101思想政治理论\n②201英语(一)\n③636计算机应用基础（含计算机基础知识和程序设计）\n④837教育技术学基础","《计算机科学导论：以Python为舟（第2版）》沙行勉主编，清华大学出版社。\n\n","①《教育技术学》何克抗、李文光主编，北京师范大学出版社。\n②《现代教育技术应用》沈莉主编，科学出版社。","教育技术研究（含少部分人工智能基础）\n参考书目1:《教育技术学研究方法(第3版)》，张屹、周平红编著，北京大学出版社。\n参考书目2:《机器学习与计算思维》(第一版)，杨娟主编，科学出版社，2023年2月版。","①教学设计\n参考书目《教学系统设计》，何克抗等编，高等教育出版社。\n②教育学原理\n参考书目1:《教育学》王道俊、王汉澜主编，人民教育出版社。\n参考书目2:《教育概论》，叶澜主编，人民教育出版社。\n","无","无","028-84483992或84480016\n\n 86057765@qq.com","成龙","2027年起，该专业业务科2改用821教育研究方法"]
[43,"013计算机科学学院","081200计算机科学与技术\n01教育大数据与云计算\n02网络信息安全\n03图形图像处理技术\n04移动计算与无线网络\n05生物特征计算\n06嵌入式与物联网","学术型",3,8000,5,0,17,17,12,"①101思想政治理论\n②201英语(一)  \n③301数学(一)\n④408计算机学科专业基础","教育部考试院统一命题","教育部考试院统一命题","计算机专业基础综合\n参考书目:《数据库系统概论》第5版，王珊、萨师煊著，高等教育出版社。","①操作系统\n参考书目《计算机操作系统（慕课版）》汤小丹，人民邮电出版社。\n②软件工程\n参考书目《软件工程导论》第6版，张海藩，清华大学出版社。","无","无","028-84483992或84480016\n\n86057765@qq.com","成龙"]
[44,"013计算机科学学院","083500软件工程\n01教育软件工程\n02企业信息化工程\n03智能计算技术\n04可信计算与系统安全\n05移动计算与嵌入式软件\n06大数据技术与应用","学术型",3,8000,3,0,13,13,10,"①101思想政治理论\n②201英语(一)\n③302数学(二)\n④408计算机学科专业基础","教育部考试院统一命题","教育部考试院统一命题","计算机专业基础综合\n参考书目:《数据库系统概论》第5版，王珊、萨师煊著，高等教育出版社。","① 操作系统\n参考书目《计算机操作系统（慕课版）》，汤小丹，人民邮电出版社。\n② 软件工程\n参考书目《软件工程导论》第6版，张海藩，清华大学出版社。","无","无","028-84483992或84480016\n\n86057765@qq.com","成龙"]
[45,"013计算机科学学院","085404计算机技术","专业型",3,12000,4,0,31,31,27,"①101思想政治理论\n②204英语(二) \n③302数学(二)\n④408计算机学科专业基础","教育部考试院统一命题","教育部考试院统一命题","计算机专业基础综合\n参考书目:《数据库系统概论》第5版，王珊、萨师煊著，高等教育出版社。","①操作系统\n参考书目《计算机操作系统（慕课版）》，汤小丹，人民邮电出版社。\n②软件工程\n参考书目《软件工程导论》第6版，张海藩，清华大学出版社。","无","无","028-84483992或84480016\n\n86057765@qq.com","成龙","2027年起，该专业业务科2改用：C语言程序设计；参考书目：《C程序设计（第五版）》谭浩强著，清华大学出版社。"]
[46,"013计算机科学学院","085405软件工程","专业型",3,12000,4,0,12,12,8,"①101思想政治理论\n②204英语(二) \n③302数学(二)\n④408计算机学科专业基础","教育部考试院统一命题","教育部考试院统一命题","计算机专业基础综合\n参考书目:《数据库系统概论》第5版，王珊、萨师煊著，高等教育出版社。","①操作系统\n参考书目《计算机操作系统（慕课版）》，汤小丹，人民邮电出版社。\n②软件工程\n参考书目《软件工程导论》第6版，张海藩，清华大学出版社。","无","无","028-84483992或84480016\n\n86057765@qq.com","成龙","2027年起，该专业业务科2改用：C语言程序设计；参考书目：《C程序设计（第五版）》谭浩强著，清华大学出版社。"]
[47,"013计算机科学学院","085410人工智能","专业型",3,12000,4,0,12,12,8,"①101思想政治理论\n②204英语(二) \n③302数学(二)\n④408计算机学科专业基础","教育部考试院统一命题","教育部考试院统一命题","计算机专业基础综合\n参考书目:《数据库系统概论》第5版，王珊、萨师煊著，高等教育出版社。","①操作系统\n参考书目《计算机操作系统（慕课版）》，汤小丹，人民邮电出版社。\n②软件工程\n参考书目《软件工程导论》第6版，张海藩，清华大学出版社。","无","无","028-84483992或84480016\n\n86057765@qq.com","成龙","2027年起，该专业业务科2改用：C语言程序设计；参考书目：《C程序设计（第五版）》谭浩强著，清华大学出版社。"]
[48,"013计算机科学学院","085412网络与信息安全","专业型",3,12000,4,0,12,12,8,"①101思想政治理论\n②204英语(二) \n③302数学(二)\n④408计算机学科专业基础","教育部考试院统一命题","教育部考试院统一命题","计算机专业基础综合\n参考书目:《数据库系统概论》第5版，王珊、萨师煊著，高等教育出版社。","①操作系统\n参考书目《计算机操作系统（慕课版）》，汤小丹，人民邮电出版社。\n②软件工程\n参考书目《软件工程导论》第6版，张海藩，清华大学出版社。","无","无","028-84483992或84480016\n\n86057765@qq.com","成龙","2027年起，该专业业务科2改用：C语言程序设计；参考书目：《C程序设计（第五版）》谭浩强著，清华大学出版社。"]
[49,"014经济与管理学院","020100理论经济学\n01政治经济学      02西方经济学      03人口、资源与环境经济学   ","学术型",3,7200,7,0,25,25,18,"①101思想政治理论\n②201英语(一)\n③303数学(三)\n④838经济学综合","教育部考试院统一命题","①《西方经济学》,高等教育出版社，2019年第二版。\n②《马克思主义政治经济学概论》，人民出版社，2021年第二版。","①政治经济学\n参考书目《马克思主义政治经济学概论》政治经济学编写组，高等教育出版社，2021年第2版。\n②西方经济学\n参考书目《西方经济学》西方经济学编写组，高等教育出版社，2019年第2版。","①资本论\n参考书目《资本论》选读，陈征等主编，高等教育出版社，2003年第二版。\n②西方经济学\n参考书目《西方经济学》西方经济学编写组，高等教育出版社，2019年第2版。","①社会主义经济理论与实践\n参考书目《社会主义经济理论（第三版）》卫兴华等主编，高等教育出版社，2013年版。\n②资本论\n参考书目《资本论》选读，陈征等主编，高等教育出版社，2003年第二版。","无","028-84484636\n\n吴老师 33934703@qq.com                                                                                                 ","成龙"]
[50,"014经济与管理学院","020200应用经济学\n01区域经济学\n02产业经济学\n03教育经济与政策","学术型",3,7200,3,0,11,11,8,"①101思想政治理论\n②201英语(一)\n③303数学(三)\n④838经济学综合","教育部考试院统一命题","①《西方经济学》,高等教育出版社，2019年第二版。\n②《马克思主义政治经济学概论》，人民出版社，2021年第二版。","①区域经济学\n参考书目《区域经济学》区域经济学编写组，高等教育出版社，2019年第1版。\n②产业经济学\n参考书目《产业经济学》（第5版）苏永水主编 ，高等教育出版社。","①社会主义经济理论与实践\n参考书目《社会主义经济理论（第三版）》，卫兴华等主编，高等教育出版社，2013年版。\n②资本论\n参考书目《资本论》选读，陈征等主编，高等教育出版社，2003年第二版。","①社会主义经济理论与实践\n参考书目《社会主义经济理论（第三版）》卫兴华等主编，高等教育出版社，2013年版。\n②资本论\n参考书目《资本论》选读，陈征等主编，高等教育出版社，2003年第二版。","无","028-84484636\n\n吴老师 33934703@qq.com                                                                                                 ","成龙"]
[51,"014经济与管理学院","120200工商管理学          \n01企业管理          \n(含人力资源管理、财务管理、营销管理、大数据管理、创新创业管理)\n","学术型",3,7200,1,0,5,5,4,"①101思想政治理论\n②201英语(一)\n③303数学(三)\n④826管理学","教育部考试院统一命题","①《管理学》，陈传明等主编，高等教育出版社，2019年第一版。\n","①管理学\n参考书目《管理学》管理学编写组，高等教育出版社，2019年第1版。\n②现代企业管理\n参考书目《现代企业管理》（第5版），清华大学出版社。","①经济法\n参考书目《经济法律通论》，刘文华主编，高等教育出版社，2006年第二版。\n②财务管理\n参考书目《财务管理》，郭复初、王庆成主编，高等教育出版社，2009年第三版。","①经济法\n参考书目《经济法律通论》，刘文华主编，高等教育出版社，2006年第二版。\n②财务管理\n参考书目《财务管理》，郭复初、王庆成主编，高等教育出版社，2009年第三版。","无","028-84484636\n\n吴老师 33934703@qq.com                                                                                                 ","成龙"]
[52,"014经济与管理学院","125100工商管理","专业型",3,"26000（共78000）",0,95,0,95,95,"①199管理类综合能力\n②204英语(二)","教育部考试院统一命题","无","①时事政治\n②综合能力\n③英语听说","无","无","大学本科毕业后有3年以上工作经验；或大专毕业后有5年以上工作经验；或获研究生学历；或获学位后有2年以上工作经验。","谢老师028-84480619\n\n295853602@qq. Com","成龙"]
[53,"014经济与管理学院","125200公共管理","专业型",3,"18000（共54000）",0,47,0,47,47,"①199管理类综合能力\n②204英语(二)","教育部考试院统一命题","无","①时事政治\n②综合能力\n③英语听说","无","无","大学本科毕业后有3年以上工作经验；或大专毕业后有5年以上工作经验；或获研究生学历；或获学位后有2年以上工作经验。","谢老师028-84480619\n\n29585360@qq. Com","成龙"]
[54,"015生命科学学院","045107学科教学（生物）","专业型",3,8000,9,0,33,33,24,"①101思想政治理论\r\n②204英语(二)\r\n③333教育综合\r\n④839生物学","教育部考试院统一命题","《陈阅增普通生物学》吴相钰主编，高等教育出版社。","中学生物学教学论\n参考书目《中学生物学教学论》刘恩山主编，第3版，高等教育出版社，2020年9月版。","①生物化学\n参考书目《生物化学简明教程》魏民、张丽萍、杨建雄，第6版，高等教育出版社，2020年8月版。\n②细胞生物学\n参考书目《细胞生物学》丁明孝、王喜忠、张传茂、陈建国主编，第5版，高等教育出版社，2020年5月版。","①生物化学\n参考书目《生物化学简明教程》魏民、张丽萍、杨建雄，第6版，高等教育出版社，2020年8月版。\n②细胞生物学\n参考书目《细胞生物学》丁明孝、王喜忠、张传茂、陈建国主编，第5版，高等教育出版社，2020年5月版。","热爱教育事业，教育教学素养较好。","028-84480651\n\n葛老师","成龙"]
[55,"015生命科学学院","071000生物学\n01植物学\n02动物学\n03细胞生物学\n04微生物学\n05生物化学与分子生物学\n06遗传学","学术型",3,8000,21,0,70,70,49,"①101思想政治理论\n②201英语(一)\n③638生物化学（自命题）\n④839生物学","《生物化学》第三版上下册，王镜岩主编，高等教育出版社。 ","《陈阅增普通生物学》吴相钰主编，高等教育出版社。","分子生物学\n参考书目《现代分子生物学》朱玉贤等编著，高等教育出版社。                                                                                                                                                                                            ","①植物学  \n参考书目《植物学》陆时万等主编，高等教育出版社，2000年版。\n②细胞生物学\n参考书目《细胞生物学》翟中和主编，高等教育出版社，2002年版。\n","①生命科学概论\n参考书目《生命科学概论》裘娟萍、钱海丰等主编，科学出版社，2005年版。\n②植物学\n参考书目《植物学》陆时万等主编，高等教育出版社，2000年版。","无","028-84480651\n\n葛老师","成龙","1.填报方向只做参考，以复试后录取方向为准。\n\n2.北京大学交叉学院联合培养计划5名，中国科学院成都生物研究所10名，不限研究方向。"]
[56,"015生命科学学院","095135食品加工与安全","专业型",3,10000,6,0,23,23,17,"①101思想政治理论\n②204英语(二)\n③341农业知识综合三\n④807食品微生物学","①《食品安全与质量管理学》颜廷才、刁恩杰主编，化学出版社，2016年第二版。\n②《食品分析》王永华主编，第三版，中国轻工业出版社，2019年版。\n③《食品卫生学》柳春红、刘烈刚,科学出版社，2018年版。\n④《食品法律法规与标准》第三版，吴澎、李宁阳、张淼主编，化学工业出版社出版，2019年版。","《食品微生物学》何国庆、贾英民、丁立孝主编，第四版，中国农业大学出版社,2016年版。","农产品贮藏加工学\n参考书目《农产品贮藏加工学》秦文、李梦琴主编，科学出版社，2013年版。","食品化学\n参考书目《食品化学》（第3版）阚建全等主编，中国农业大学出版社，2016年版。","食品化学\n参考书目《食品化学》（第3版）阚建全等主编，中国农业大学出版社，2016年版。","无","028-84480651\n\n葛老师","成龙"]
[57,"016音乐学院","130100艺术学\n\n01音乐学\n\n\n","学术型",3,"8000",2,0,6,6,4,"①101思想政治理论\n②201英语(一)\n③619艺术史论\n④819艺术美学原理","《艺术学概论》（第五版），彭吉象，北京大学出版社，2019年版。","参考书目1:《美学原理》叶朗著，北京大学出版社，2009年版。\n参考书目2:《美学概论》（第四版）牛宏宝著，中国人民大学出版社，2016年版。","专业面试\n参考书目1：《中国音乐简史》，夏野编著，高等教育出版社，2007年版；\n2.《西方音乐史简编》，沈旋等编著，上海音乐出版社，2006年版；\n3.《中国近现代音乐史》，汪毓和著，人民音乐出版社，2003年版；\n4.《民族音乐概论》，中国艺术研究院音乐研究所著，人民音乐出版社，2001年版；\n5.《音乐美学基础》，张前、王次炤著，人民音乐出版社，2004年版；                \n6.《音乐教育的实践与理论研究》，刘沛著，西南大学出版社，2021年版。\n","①中国音乐美学\n②音乐基础（考试内容：乐理与练耳）\n参考书目1:《音乐美学基础》张前、王次炤著，人民音乐出版社，2004年版；《中国音乐美学史》蔡仲德著，人民音乐出版社，2000年版。\n参考书目2:《基本乐理》李重光著，高等教育出版社，2004年版。   ","①中国音乐美学\n②音乐基础（考试内容：乐理与练耳）\n参考书目1:《音乐美学基础》张前、王次炤著，人民音乐出版社，2004年版；《中国音乐美学史》蔡仲德著，人民音乐出版社，2000年版。\n参考书目2:《基本乐理》李重光著，高等教育出版社，2004年版。   ","无","028-84480821\n\n8528964@qq.com","成龙"]
[58,"016音乐学院","135200音乐\n01声乐\n02器乐（钢琴、手风琴、竹笛、大提琴、古筝、二胡）\n03作曲\n04音乐教育\n05音乐管理\n","专业型",3,20000,10,0,47,47,37,"①101思想政治理论\n②204英语(二)\n③336艺术基础\n④841中外音乐简史","《艺术概论》，王宏建主编，文化艺术出版社，2010年版。","①《中国音乐简史》夏野编著，高等教育出版社，2007年版。\n②《西方音乐史导学》沈璇等著，上海音乐学院出版社，2006年版。               ","01声乐方向复试科目：①美声演唱4首作品：外国歌剧选曲1首、外国艺术歌曲1首（外国作品原文演唱，限定意大利语、德语、法语、俄语）、中国艺术歌曲1首、中国歌剧选曲1首；民族演唱4首作品：中国歌剧选曲1首、中国古诗词作品1首、近现代中国艺术歌曲1首、地方民歌或改编民歌1首；流行演唱4首作品：爵士风格歌曲1首（用英文演唱）、音乐剧歌曲1首、弹唱歌曲1首（用键盘或吉他）、中文歌曲1首；\n②视唱。 \n02器乐方向复试科目;①西洋乐器演奏4首作品：练习曲1首、乐曲1首、复调1首、古典奏鸣曲1个快板乐章；民族乐器演奏4首作品；\n②视奏。\n03作曲方向复试科目；①四部和声写作、音乐分析、创作。另提交本人作品2首（其中歌曲作品1首、器乐作品1首）；\n②器乐演奏。\n04音乐教育方向复试科目;\n①现场教学（根据中小学音乐教材内容抽选）；\n②音乐专业技能（自弹自唱、演奏、演唱和指挥中任选一项，曲目自选）。\n参考书目1：《义务教育艺术课程标准（2022年版）》北京师范大学出版集团 ；\n参考书目2：《义务教育艺术课程标准（2022年版）解读》北京师范大学出版集团；\n参考书目3：《普通高中音乐课程标准》（2017年版2020修订）人民教育出版社；\n参考书目4：《普通高中音乐课程标准（2017年版）解读》高等教育出版社；                参考书目5：义务教育及高中音乐教材，人民音乐出版社。                                 05音乐管理方向复试科目：          \n①提交1篇音乐管理活动相关的组织方案；\n②音乐管理专业面试；\n③音乐专业技能（演奏或演唱2首作品，曲目自选）。\n","①中国音乐美学\n②音乐基础（考试内容：乐理与练耳）\n参考书目1:《音乐美学基础》张前、王次炤著，人民音乐出版社，2004年版；《中国音乐美学史》蔡仲德著，人民音乐出版社，2000年版。\n参考书目2:《基本乐理》李重光著，高等教育出版社，2004年版。                                                ","①中国音乐美学\n②音乐基础（考试内容：乐理与练耳）\n参考书目1:《音乐美学基础》张前、王次炤著，人民音乐出版社，2004年版；《中国音乐美学史》蔡仲德著，人民音乐出版社，2000年版。\n参考书目2:《基本乐理》李重光著，高等教育出版社，2004年版。                          ","01、02方向的考生有形象气质的要求。\n","028-84480821\n\n8528964@qq.com\n","成龙","01方向招生计划18人\n02方向招生计划9人\n03方向招生计划2人\n04方向招生计划16人       05方向招生计划2人"]
[59,"017体育学院","040300体育学\n01体育人文社会学\n02运动人体科学\n03体育教育训练学\n04民族传统体育学","学术型",3,7200,2,0,8,8,6,"①101思想政治理论\n②201英语(一)\n③642体育理论\n","①《运动生理学》邓树勋主编，高等教育出版社，2015年第三版。\n②《运动训练学》田麦久、刘大庆主编，人民体育出版社，2019年第十版。","无","01方向：①体育史②体育社会学③社会科学研究方法④外语（口试）\n参考书目1：《体育史》崔乐泉主编，高等教育出版社，2018年第一版。参考书目2：《体育社会学》卢元镇主编，高等教育出版社，2018年第四版。\n02方向：①体育保健学②运动生物化学或者运动生物力学（二选一）③运动人体科学实验设计④外语（口试）\n参考书目1:《体育保健学》赵斌、张钧、刘晓莉主编，高等教育出版社，2018年第六版。参考书目2：《运动生物化学》张蕴琨、丁树哲主编，高等教育出版社，2014年第二版。参考书目3：《运动生物力学》陆阿明、赵焕彬、顾耀东主编，高等教育出版社，2018年第四版 。\n03方向：①体育心理学②学校体育学③专业技术测试④外语（口试）\n参考书目1：《体育心理学》季浏、殷恒婵、颜军主编，高等教育出版社，2016年第三版。参考书目2：《学校体育学》潘绍伟、于可红主编，高等教育出版社，2016年第三版。\n04方向：①民族传统体育概论②体育史③武术或民族传统体育项目专业技术测试④外语（口试）\n参考书目1：《民族传统体育概论》戴国斌主编，高等教育出版社，2015年第二版。参考书目2：《体育史》崔乐泉主编，高等教育出版社，2018年第一版。","①运动解剖学\n参考书目《运动解剖学》李世昌主编，高等教育出版社，2015年第三版。\n②体育概论\n参考书目《体育概论》杨文轩、陈琦主编，高等教育出版社，2013年第二版。","①运动解剖学\n参考书目《运动解剖学》李世昌主编，高等教育出版社，2015年第三版。\n②体育概论\n参考书目《体育概论》杨文轩、陈琦主编，高等教育出版社，2013年第二版。","无","028-84481313\n\nwentingjoy@163.com \n\n249737118@qq.com","成龙","01方向招学硕总人数的20%\n\n02方向招学硕总人数的20%\n\n03方向招学硕总人数的50%\n\n04方向招学硕总人数的10%"]
[60,"017体育学院","045201体育教学","专业型",3,9000,10,0,36,36,26,"①101思想政治理论\n②204英语(二)\n③346体育综合","（体育硕士专业学位）教指委指定大纲\n\n招生单位命题","无","①体育教学论\n参考书目《体育教学论》毛振明主编，高等教育出版社，2011年第二版。\n②体育心理学\n参考书目《体育心理学》季浏、殷恒婵、颜军主编，高等教育出版社，2016年第三版。\n③专业技术测试\n④外语（口试）","①运动解剖学\n参考书目《运动解剖学》李世昌主编，高等教育出版社，2015年第三版。\n②身体素质测试\n100米跑、立定三级跳和原地推铅球，评分标准参照《四川省普通高校招生体育类专业考生评分标准与办法（试行）》，3项总分未达36分不予录取。","①运动解剖学\n参考书目《运动解剖学》李世昌主编，高等教育出版社，2015年第三版。\n②身体素质测试\n100米跑、立定三级跳和原地推铅球，评分标准参照《四川省普通高校招生体育类专业考生评分标准与办法（试行）》，3项总分未达36分不予录取。","无","028-84481313\n\nwentingjoy@163.com \n\n249737118@qq.com","成龙"]
[61,"017体育学院","045202运动训练","专业型",3,9000,4,0,16,16,12,"①101思想政治理论\n②204英语(二)\n③346体育综合","（体育硕士专业学位）教指委指定大纲\n\n招生单位命题","无","①体育教学论\n参考书目《体育教学论》毛振明主编，高等教育出版社，2011年二版。\n②体育心理学\n参考书目《体育心理学》季浏、殷恒婵、颜军主编，高等教育出版社，2016年第三版。\n③专业技术测试\n④外语（口试）","①学校体育学\n参考书目《学校体育学》潘绍伟、于可红主编，高等教育出版社，2016年第三版。\n②身体素质测试\n100米跑、立定三级跳和原地推铅球，评分标准参照《四川省普通高校招生体育类专业考生评分标准与办法（试行）》，3项总分未达36分不予录取。","①学校体育学\n参考书目《学校体育学》潘绍伟、于可红主编，高等教育出版社，2016年第三版。\n②身体素质测试\n100米跑、立定三级跳和原地推铅球，评分标准参照《四川省普通高校招生体育类专业考生评分标准与办法（试行）》，3项总分未达36分不予录取。","无","028-84481313\n\nwentingjoy@163.com\n\n249737118@qq.com\n","成龙"]
[62,"018美术学院•\n书法学院","135600美术与书法\n01美术教育\n02中国画\n03油画\n04版画\n05水彩画\n06书法","专业型",3,20000,6,0,26,26,20,"①101思想政治理论\n②204英语(二)\n③336艺术基础\n④843速写\n\n","王宏建主编《艺术概论》,文化艺术出版社，2010年版。","参考书目：无\n答题时采用报考点统一提供的签字笔或2B铅笔。（其他文具作答，以异常卷处理，不予评卷）","01方向：短文写作\n02-06方向：专业技法表现与创作","①专业面试\n②造型基础\n参考书与初试参考书一致","①专业面试\n②造型基础\n参考书与初试参考书一致","无","028-84682028\n\n149902087@qq.com","成龙","01方向招9人\n02方向招4人\n03方向招4人\n04方向招1人\n05方向招1人\n06方向招7人"]
[63,"018美术学院•\n书法学院","135700设计\n01环境设计\n02视觉传达设计\n","专业型",3,20000,8,0,42,42,34,"①101思想政治理论\n②204英语(二)\n③336艺术基础\n④843速写","《艺术概论》,王宏建主编，文化艺术出版社，2010年版。","参考书目：无\n答题时采用报考点统一提供的签字笔或2B铅笔。（其他文具作答，以异常卷处理，不予评卷）","专业技法表现与创作","①专业面试\n②造型基础\n参考书与初试参考书一致","①专业面试\n②造型基础\n参考书与初试参考书一致","无","028-84682028\n\n149902087@qq.com","成龙","01方向招14人\n\n02方向招28人"]
[64,"018美术学院•\n书法学院","130100艺术学\n01艺术美学\n02美术与书法学\n03设计艺术理论\n04艺术考古与文博","学术型",3,"8000",2,0,8,8,6,"①101思想政治理论\n②201英语(一)\n③619艺术史论\n④819艺术美学原理","《艺术学概论》（第五版），彭吉象，北京大学出版社，2019年版。","参考书目1:《美学原理》叶朗著，北京大学出版社，2009年版。\n参考书目2:《美学概论》（第四版）牛宏宝著，中国人民大学出版社，2016年版。","①专业面试\n②笔试（根据考试命题，结合所选专业方向，进行艺术评论写作）。\n参考书目：无","艺术学原理\n参考书目《从原理到形态——普通艺术学》，黄宗贤，湖南美术出版社，2011年版。","艺术学原理\n参考书目《从原理到形态——普通艺术学》，黄宗贤，湖南美术出版社，2011年版。","无","           028-84682028\n\n149902087@qq.com","成龙"]
[65,"019商学院","120202企业管理\n01企业战略\n02人力资源\n03市场营销\n04大数据管理与应用\n05公司财务\n06物流管理","学术型",3,7200,3,0,11,{"$f":"H67+I67","v":11},{"$f":"I67+H67-G67","v":8},"①101思想政治理论\n②201英语(一)或203日语\n③303数学(三)         \n④826管理学","教育部考试院统一命题","②《管理学》管理学编写组，高等教育出版社，2019年第1版。\n","①专业综合\n参考书目《管理学》管理学编写组，高等教育出版社，2019年第1版。\n②综合面试（含英语口语测试）","①经济学\n参考书目《西方经济学（微观部分）》 高鸿业主编，中国人民大学出版社，第八版。\n②统计学\n参考书目《统计学（第8版）》贾俊平、何晓群、金勇进编著，人民大学出版社。","无","无","康老师028-84484998\n\n459603473@qq.com","成龙"]
[66,"019商学院","125300会计\n","专业型",3,15000,9,0,30,30,21,"①199管理类综合能力\n②204英语(二)","教育部考试院统一命题","无","①时事政治\n②专业综合\n参考书目1:《财务会计学》主编戴德明、林钢、赵西卜，中国人民大学出版社，第14版。\n参考书目2:《管理会计学》主编孙茂竹、支晓强、戴璐，中国人民大学出版社，第十版。\n参考书目3:《财务管理学》 主编王化成、刘俊彦、荆新，中国人民大学出版社，第九版。\n③综合面试（含英语口语测试）","①管理学\n参考书目《管理学》主编周三多，高等教育出版社，第七版。\n②会计学基础\n参考书目《基础会计（原初级会计学）》主编朱小平、秦玉熙、袁蓉丽，中国人民大学出版社，第十一版。","无","无","康老师028-84484998\n\n459603473@qq.com","成龙"]
[67,"019商学院","125601工程管理","专业型",3,24000,0,17,0,17,17,"①199管理类综合能力\n②204英语（二）","教育部考试院统一命题","无","①工程管理概论\n参考书目《工程管理概论（第三版）》，成虎，中国建筑工业出版社，2017年版。\n②政治理论","①管理学\n参考书目《管理学（第七版）》主编周三多，高等教育出版社。\n②管理统计学\n参考书目《管理统计学（第三版）》，李金林、赵中秋、马宝龙，清华大学出版社。","无","1、大学本科毕业后有3年(含)以上工作经历人员；\n2、大专毕业或获得国家承认的高职高专毕业学历或大学本科结业后，符合招生单位相关学业要求，达到大学本科同等学力并有5年(含)以上工作经历人员;\n3、已获硕士学位或博士学位并有2年(含)以上工作经历人员。(工作经历时间截止到录取当年9月1日)","康老师028-84484998 \n\n459603473@qq.com","成龙"]
[68,"019商学院","125603工业工程与管理","专业型",3,24000,1,0,6,6,5,"①199管理类综合能力\n②204英语（二）","教育部考试院统一命题","无","①运筹学\n参考书目《运筹学本科版（第五版）》，《运筹学》教材编写组，清华大学出版社，2022年版。\n②政治理论","①管理学\n参考书目《管理学（第七版）》主编周三多，高等教育出版社。\n②管理统计学\n参考书目《管理统计学（第三版）》，李金林、赵中秋、马宝龙，清华大学出版社。","无","无","康老师028-84484998 \n\n459603473@qq.com","成龙"]
[69,"019商学院","125700审计\n","专业型",3,15000,7,0,24,24,17,"①199管理类综合能力\n②204英语(二)","教育部考试院统一命题","无","①专业综合\n参考书目1:《审计》（第4版）陈汉文主编，中国人民大学出版社，2020年版。\n参考书目2:《财务会计学》（第十三版）主编戴德明、林钢、赵西卜，中国人民大学出版社。\n参考书目3:《财务管理学》第八版）主编荆新、王化成，中国人民大学出版社。\n②综合面试（含英语口语测试）\n③时事政治","①管理学\n参考书目《管理学》主编周三多，高等教育出版社，第七版。\n②会计学基础\n参考书目《基础会计（原初级会计学）》 主编朱小平、秦玉熙、袁蓉丽中国人民大学出版社，第十一版。","无","无","康老师028-84484998 \n\n459603473@qq.com","成龙"]
[70,"020心理学院","040200心理学\n\n\n\n","学术型",3,7200,6,0,23,23,17,"①101思想政治理论\n②201英语(一)\n③312心理学专业基础","教育部考试院统一命题","无","心理学综合能力考察\n参考书目1：《心理学论文写作规范（第二版）》中国心理学会编， 科学出版社，2025年1月版；参考书目2：《心理学研究方法》，莫雷、王瑞明等著，广东高等教育出版社，2019年12月版；参考书目3：《人格心理学》（美）伯格 Jerry M. Burger，陈会昌译，中国轻工业出版社，2014年9月版。","①心理统计学\n参考书目《现代心理与教育统计学（第5版）》张厚粲、徐建平，北京师范大学出版社，2021年1月版。\n②心理学史\n参考书目《西方心理学的历史与体系（第二版）》叶浩生主编，人民教育出版社，2014年1月版。","无","无","028-84767692\n\n csxlxy@126.com","狮子山","免试生可接收直博生1名"]
[71,"020心理学院","045116心理健康教育","专业型",3,8000,4,0,9,9,5,"①101思想政治理论\n②204英语(二)\n③333教育综合\n④850心理学研究方法","教育部考试院统一命题","《心理学研究方法：评估信息世界之法》（美）贝丝·莫林（Beth Morling）著；张明等译，中国轻工业出版社，2020年3月版。","心理学综合能力考察\n参考书目1：《心理学论文写作规范（第二版）》中国心理学会编， 科学出版社，2025年1月版；参考书目2：《心理学研究方法》，莫雷，王瑞明等著，广东高等教育出版社，2019年12月版；参考书目3：《人格心理学》（美）伯格 Jerry M. Burger，陈会昌译，中国轻工业出版社，2014年9月版。","①心理统计学\n参考书目《现代心理与教育统计学（第5版）》张厚粲、徐建平，北京师范大学出版社，2021年1月版。\n②心理学史\n参考书目《西方心理学的历史与体系（第二版）》叶浩生主编，人民教育出版社，2014年1月版。","无","无","028-84767692\n\ncsxlxy@126.com","狮子山"]
[72,"020心理学院","045400应用心理","专业型",3,16000,7,0,32,32,25,"①101思想政治理论\n②204英语(二)\n③347心理学专业综合","①《普通心理学（第六版）》彭聃龄、陈宝国著，北京师范大学出版社,2024年1月版。\n②《发展心理学（第三版）》林崇德,人民教育出版社，2018年5月版。\n③《社会心理学（第3版）》金盛华，高等教育出版社，2020年8月版。\n④《心理学研究方法：评估信息世界之法》（美）贝丝·莫林（Beth Morling）著，张明等译，中国轻工业出版社，2020年3月版。\n招生单位命题","无","心理学综合能力考察\n参考书目①《心理学论文写作规范（第二版）》中国心理学会编， 科学出版社，2025年1月版；②《心理学研究方法》，莫雷、王瑞明等著，广东高等教育出版社，2019年12月版；③《人格心理学》（美）伯格 Jerry M. Burger，陈会昌译，中国轻工业出版社，2014年9月版。","①心理统计学\n参考书目《现代心理与教育统计学（第5版）》张厚粲、徐建平，北京师范大学出版社，2021年1月版。\n②心理学史\n参考书目《西方心理学的历史与体系（第二版）》叶浩生主编，人民教育出版社，2014年1月版。","无","无","028-84767692\n\nsxlxy@126.com","狮子山"]
[73,"020心理学院","077101基础心理学","学术型",3,8000,1,0,3,3,2,"①101思想政治理论\n②201英语(一)\n③649普通心理学\n④850心理学研究方法","《普通心理学（第六版）》彭聃龄,陈宝国著，北京师范大学出版社,2024年1月版。\n","《心理学研究方法：评估信息世界之法》（美）贝丝·莫林（Beth Morling）著，张明等译，中国轻工业出版社，2020年3月版。","心理学综合能力考察\n参考书目1：《心理学论文写作规范（第二版）》中国心理学会编，科学出版社，2025年1月版；参考书目2：《心理学研究方法》，莫雷、王瑞明等著，广东高等教育出版社，2019年12月版；参考书目3：《人格心理学》（美）伯格 Jerry M. Burger，陈会昌译，中国轻工业出版社，2014年9月版。","①心理统计学\n参考书目《现代心理与教育统计学（第5版）》张厚粲、徐建平，北京师范大学出版社，2021年1月版。\n②心理学史             参考书目《西方心理学的历史与体系（第二版）》叶浩生主编，人民教育出版社，2014年1月版。","无","无","028-84767692\n\ncsxlxy@126.com","狮子山"]
[74,"021工学院","085406控制工程\n","专业型",3,12000,8,0,29,29,21,"①101思想政治理论\n②204英语(二)\n③302数学(二)\n④834自动控制原理","教育部考试院统一命题","《自动控制原理（第二版）（上册）》黄家英，高等教育出版社。","C程序设计\n参考书目《C程序设计（第五版）》谭浩强著，清华大学出版社。\n","①信号与系统\n参考书目《信号与系统》（第四版）陈生潭、郭宝龙、李学武、高建宁，西安电子科技大学出版社，2014年版。\n②电工学\n参考书目《电工学》（上下册）第六版，秦曾煌主编，高等教育出版社。","无","无","028-84480609，84480152\n\n985622924@qq.com","成龙","2027年起，该专业业务科2改用：C语言程序设计；参考书目：《C程序设计（第五版）》谭浩强著，清华大学出版社。"]
[75,"021工学院","085411大数据技术与工程","专业型",3,12000,19,0,65,65,46,"①101思想政治理论\n②204英语(二)\n③302数学(二)\n④845安全系统工程","教育部考试院统一命题","《安全系统工程（第3版）》徐志胜、姜学鹏主编，机械工业出版社，2017年版。","安全科学原理\n参考书目《安全科学原理》，李树刚、成连华、林海飞主编，西北工业大学出版社，2014年版。","①工业通风\n参考书目《工业通风与除尘》王志主编，中国质检出版社，2015年版。\n②安全人机工程学\n参考书目《安全人机工程学（第二版）》赵江平，西安电子科技大学出版社，2019年版。","无","无","028-84480609,84480152\n\n985622924@qq.com\n","成龙","2027年起，该专业业务科2改用：C语言程序设计；参考书目：《C程序设计（第五版）》谭浩强著，清华大学出版社。"]
[76,"022影视与传媒学院","130100艺术学\n01戏剧与影视学\n\n","学术型",3,"8000",2,0,7,7,5,"①101思想政治理论\n②201英语(一)\n③619艺术史论\n④819艺术美学原理","《艺术学概论》（第五版），彭吉象，北京大学出版社，2019年版。","参考书目1:《美学原理》叶朗著，北京大学出版社，2009年版。\n参考书目2:《美学概论》（第四版）牛宏宝著，中国人民大学出版社，2016年版。\n","①专业面试\n②笔试:戏剧与影视评论写作\n参考书目：无","艺术学原理\n参考书目《从原理到形态——普通艺术学》，黄宗贤，湖南美术出版社，2011年版。","无","无","028-84767175\n\n649854469@qq.com","狮子山"]
[77,"022影视与传媒学院","135400戏剧与影视\n01电影\n02编导艺术\n03播音与主持艺术\n04戏剧    \n05智能影像艺术\n\n\n\n","专业型",3,20000,20,0,100,100,80,"①101思想政治理论\n②204英语(二)\n③336艺术基础\n④846艺术综合","《艺术概论》,王宏建主编，文化艺术出版社，2010年版。","①《数字电影美学》,谢建华，北京大学出版社，2024年版。\n②《戏剧艺术概论》,周安华，高等教育出版社，2014年版。\n③《广播电视概论》（第5版）宫承波主编，中国广播影视出版社，2022年版。","01:命题写作（笔试）,参考书目：无。         \n02:电视编导基础（笔试）,参考书目：《电视编导基础》（第2版），韩斌生著，中国传媒大学出版社，2014年版。\n03:播音主持基础（笔试）,参考书目：《中国播音学》（修订版）,张颂主编，中国传媒大学出版社，2003年版。       \n04:中外经典戏剧作品分析（笔试）,参考书目：无。  \n05: 智能艺术设计基础（笔试），参考书目：《智能艺术设计导论》，李四达，清华大学出版社，2025年版。\n","01:①视听语言：《影视语言教程》（第3版）,李稚田，北京师范大学出版社,2022年版。②影视导演基础:《影视导演基础》(第3版),王心语，中国传媒大学出版社，2018年版。          \n02:①视听语言：《影视语言教程》（第3版）,李稚田，北京师范大学出版社,2022年版。②电视节目分析,参考书目：无。\n03:①节目主持分析, 参考书目：无。②电视节目分析,参考书目：无。      \n04:①表演基础理论：《戏剧表演学》,胡导，中国戏剧出版社，2018年版。②编剧基础理论：《编剧理论与技法》,陆军，上海人民出版社，2017年版。                     \n05:①视听语言：《影视语言教程》（第3版）,李稚田，北京师范大学出版社,2022年版。②生成式人工智能：《生成式人工智能艺术》，于幸泽，同济大学出版社，2025年。","无","面试内容为专业能力测试。其中 03面试内容:文学作品朗诵、电视新闻口播、电视节目主持，本方向要求考生的普通话应达到一级乙等水平。\n\n\n\n","028-84767175\n\n649854469@qq.com\n","狮子山","根据学校下达的招生计划，本专业按录取率录取。\n录取率=本专业录取人数/本专业复试人数。\n各方向录取人数=各方向复试人数*录取率。"]
[78,"022影视与传媒学院","135600美术与书法\n01造型艺术","专业型",3,20000,2,0,7,7,5,"①101思想政治理论\r\n②204英语(二)\r\n③336艺术基础\r\n④843速写","《艺术概论》王宏建主编,文化艺术出版社，2010年版。","参考书目：无\n答题时采用报考点统一提供的答题纸和文具（如考点未提供文具，请采用2B铅笔、钢笔或签字笔）答题。 （其他文具作答，以异常卷处理，不予评卷）","①专业面试                                                                                                                                                                                              ②色彩创作\n参考书目：无                                                                                                                                ","①专业面试\n②素描\n参考书目：无","无","无","028-84767175\n\n649854469@qq.com","狮子山"]
[79,"023服装与设计艺术学院","140300设计学\n01丝绸之路与民族服饰设计\n02视觉文化与数智设计\n03设计历史与理论","学术型",3,8000,5,0,18,18,13,"①101思想政治理论\n②201英语(一)\n③648艺术设计概论\n④843速写","《艺术设计概论》李砚祖著，湖北美术出版社，2009年版。","参考书目：无\n答题时采用报考点统一提供的答题纸和文具（如考点未提供文具，请采用2B铅笔、钢笔或签字笔）答题。（其他文具作答，以异常卷处理，不予评卷）","①专业面试                                                                                                                                                                                              ②命题写作\n参考书目《中国工艺美术史》田自秉著，商务印书馆出版社，2014年版。","命题写作\n参考书与复试参考书一致","造型基础\n参考书目：无","无","028-84685672\n\n350768243@qq.com\n","成龙"]
[80,"023服装与设计艺术学院","135700设计\n01服装设计\n02产品设计","专业型",3,20000,10,0,49,49,39,"①101思想政治理论\n②204英语(二)\n③336艺术基础\n④843速写","《艺术概论》王宏建主编，文化艺术出版社，2010年版。","参考书目：无\n答题时采用报考点统一提供的答题纸和文具（如考点未提供文具，请采用2B铅笔、钢笔或签字笔）答题。（其他文具作答，以异常卷处理，不予评卷）","①专业面试\n②专业技法表现与创作\n参考书目：无","专业技法表现与创作\n参考书目：无","造型基础\n参考书目：无","无","028-84685672\n\n350768243@qq.com\n","成龙"]
[81,"024舞蹈学院\n","135300舞蹈\n01舞蹈表演与编导 \n02音乐剧        \n03舞蹈教育","专业型",3,20000,10,0,46,46,36,"①101思想政治理论\n②204英语(二)\n③336艺术基础\n④847中国舞蹈史","《艺术概论》王宏建主编，文化艺术出版社，2010年版。","中国舞蹈史\n参考书目《中国舞蹈史》编写组，高等教育出版社，2019年版。","①舞蹈艺术概论\n参考书目《舞蹈艺术概论》隆荫培、徐尔充，上海音乐出版社，2009年6月版。\n②外语听力及口语测试\n③面试及专业测试\n具体要求：(1)舞蹈表演与编导：A.基本功跳转翻组合1个或国标舞基本功展示1个（限国标）；B.其他舞种组合1个(表演必考)；C.剧目片段1个(不限风格，表演、编导必考，编导进行现场结构分析)；D.命题即兴编舞（编导必考）。\n（2）音乐剧：A.形体展示1个；B.声乐作品一首；C.剧目片段1个；D.音乐剧情境命题即兴创编（编导必考，并进行现场结构分析）。注：音乐剧编导考生A.B任选一项。\n（3）舞蹈教育：A基本功跳转翻组合1个，B剧目片段一个（不限风格），C综合素质面试。","舞蹈基础理论\n参考书目1:\n《舞蹈教育学》吕艺生，上海音乐出版社，2000年5月版。\n参考书目2:\n《外国舞蹈史及作品鉴赏》欧建平，高等教育出版社，2008年1月版。","舞蹈基础理论\n参考书目1:\n《舞蹈教育学》吕艺生，上海音乐出版社，2000年5月版。\n参考书目2:\n《外国舞蹈史及作品鉴赏》欧建平，高等教育出版社，2008年1月版。","形象及身体条件符合专业基本要求","028-84483003  \n\n20437572@qq.com\n","成龙"]
[82,"027中华传统文化学院","050100中国语言文学\n01中国典籍与文化","学术型",3,7200,2,0,6,6,4,"①101思想政治理论\n②201英语(一)或203日语\n③616文学理论基础与写作\n④816中国语言文学基础（含古代汉语、现代汉语、古代文学、现当代文学）","①马克思主义理论研究和建设工程重点教材《文学理论》（第二版），高等教育出版社，人民出版社，2020年版。\n②《文学理论导引》周宪，高等教育出版社，2014年版。","①古代汉语\n参考书目1:《新编古代汉语》（上、下册），周及徐主编，中华书局，2014年修订本。\n参考书目2:《古代汉语》王力主编，1998年重排校订本，中华书局。\n②现代汉语\n参考书目1：《现代汉语》（增订三版），黄伯荣主编，高等教育出版社。\n参考书目2：《现代汉语》（重订本），胡裕树主编，上海教育出版社。\n③中国古代文学史\n参考书目1：《中国古代文学史》郭预衡主编,上海古籍出版社。\n参考书目2：《中国古代文学史》袁行霈主编,高等教育出版社。\n④现当代文学\n参考书目《中国现代汉语文学史》（上、下），曹万生主编，中国人民大学出版社。","①《语言学纲要》叶蜚声、徐通锵著，北京大学出版社，2010年修订本。\n②《语言学概论》胡明扬主编，语文出版社。\n③《中国古代文学批评史》郭绍虞著，商务印书馆，2010年版。\n④《四川方言与民俗》黄尚军，四川人民出版社，2002年1月版。","①《汉字学》刘志成主编，天地出版社2014年修订本。\n②《新编古代汉语》，周及徐主编，中华书局，2009年版。\n③文学理论，中国历代文论选。④现代汉语，依据普通高校教材。","①《汉字学》刘志成主编，天地出版社，2014年修订本。\n②《新编古代汉语》周及徐主编，中华书局，2009年版。\n③文学理论，中国历代文论选。\n④现代汉语，依据普通高校教材。","①616：满分150分，其中文学理论基础60分，写作90分（说明：根据文学作品写文学评论）。\n②816：满分150分，其中古代汉语35分，现代汉语占40分，古代文学45分，现当代文学30分。","028-84762633\n\n1544465727@qq.com","狮子山"]
[83,"027中华传统文化学院","060200中国史\n01文化史","学术型",3,7200,3,0,12,12,9,"①101思想政治理论\n②201英语(一)或203日语\n③313历史学专业基础","教育部考试院统一命题","无","中国历史\n参考书目：无","中国史\n参考书目：无","中国史\n参考书目：无","无","028-84762633\n\n1544465727@qq.com","狮子山"]
[84,"028 纪检监察学院","0301J1廉政治理","学术型",3,7200,1,0,6,6,5,"①101思想政治理论\n②201英语(一)\n③650纪检监察原理\n④851纪检监察综合（监察法学、党的纪律学、廉政学）","纪检监察原理参考书目：《纪检监察学原论》，喻少如、褚宸舸主编，高等教育出版社，2023年7月出版。  ","①监察法学（笔试）\n参考书目：《监察法学》，马怀德主编，人民出版社，2019年出版。\n②党内法规学(笔试）\n参考书目：《党内法规学》，宋功德、张文显主编，高等教育出版社2020年出版。\n③廉政学（笔试）\n参考书目：《中外廉政制度比较》，项继权、李敏杰、罗峰著，商务印书馆，2015年出版。","\n纪检监察基础\n参考书目：《纪检监察学基础》（第二版），王希鹏著，中国方正出版社，2025年出版。","当代中国政治制度\n参考书目：《当代中国政治制度导论》（第二版），杨光斌著，中国人民大学出版社，2015年出版。","当代中国政治制度\n参考书目：《当代中国政治制度导论》（第二版），杨光斌著，中国人民大学出版社，2015年出版。","无","028-84769923","狮子山"]
[85,"030四川省互联网学院","135400戏剧与影视    \n01新媒体\n\n\n","专业型",3,20000,4,0,20,20,16,"①101思想政治理论\n②204英语(二)\n③336艺术基础\n④846艺术综合","《艺术概论》,王宏建主编文化艺术出版社，2010年版。","①《数字电影美学》,谢建华，北京大学出版社，2024年版。\n②《戏剧艺术概论》,周安华，高等教育出版社，2014年版。\n③《广播电视概论》（第5版）宫承波主编，中国广播影视出版社，2022年版。"," 新媒体基础（笔试） 参考书目：《新媒体设计概论》，汤晓颖编著，电子工业出版社，2020年版。\n","①视听语言：《影视语言教程》（第3版）,李稚田，北京师范大学出版社,2022年版。②新媒体艺术：《新媒体艺术导论》,童岩，郭春宁，中国人民大学出版社，2018年版。\n","无","无","028-84483992或028-84480016                                                                                    邮箱86057765@qq.com","成龙"]
["备注：1.本目录含免试生目录和直博生目录。\n      2.未完成的免试生计划转移到考试招生计划。\n      3.正式招生计划较目录计划可能出现微调，实际招生人数以教育部正式下达的招生计划为准。"]